Workbook

Sheet Cover
M2: Example and Worksheet Checklist
G3: Statistical Measurement Methods in Excel: Basic
N4: Simple Bayes
N5: The Beta Distribution
N6: The Rule of Succession
N7: Catch and Recatch
N8: The Mathless Table
N9: Estimating a Distribution and Mean
F13: Hubbard Decision Research
F14: 2S410 Canterbury Ct
F15: Glen Ellyn, IL 60137
F16: www.hubbardresearch.com

Sheet Simple Bayes
A1: The Urn of Mystery: A Simple Bayesian Example
C2: Bayesian methods work out the probability of something given a "prior" probability and new data. The charts below show the simplest example of a Bayesian inference. Consider two urns, A and B. Each urn contains a large number of red and green marbles but the proporations of colors are different between the urns. You know the proportion of marbles in each urn but you don't know which urn is which. You try to determine the probability you are drawing from urn A by the color of a single randomly drawn marble. Urn A can be thought of as a hypothesis H being true and the draw of a red marble can be thought of as specific observed data D. You have a prior for H of P(H) and you would like to know the probability of H given additional data D, written P(H|D). This simple example applies to many practical situations by itself (medical tests, quality control, etc.) and it is also the basis of more elaborate methods shown in some of the other worksheets in this file.
A5: "It Depends" - If I knew this, I would change this probability.
A6: If we knew which urn we drew from, we would know the probability of drawing a red marble. This is a Conditional Probability. The probability of drawing Red given we are drawing from urn A, can be written as P(R|A). | D6: Urn A | I6: Urn B
D7: P(R|A)= | E7: 0.5 | I7: P(R|B)= | J7: 0.5
D8: P(G|A)= | E8: =1-E7 -> 0.5 | I8: P(G|B)= | J8: =1-J7 -> 0.5
G9: =E7 -> 0.5 | L9: =J7 -> 0.5
G10: =1-G9 -> 0.5 | L10: =1-L9 -> 0.5
A12: "To Be or Not To Be" - What is my current uncertainty?
A13: The probability we are drawing from urn A or B is written P(A) and P(B) respectively. This is the "prior" probability, or "What do I know now?" These are mutually exclusive and colletively exhaustive, so they follow the Compliment Rule: P(A)+P(~A)=1. | G13: Which Urn?
G14: P(A)= | H14: 0.5 | K14: B | L14: =H15 -> 0.5
G15: P(B)= | H15: =1-H14 -> 0.5 | K15: A | L15: =H14 -> 0.5
G16: Change Yellow Cells!
G17: Blue Cells Are Computed Output!
A19: "What might I see if I look?" What's the chance of a particular observation?
A20: The chance of drawing a red marble, without knowing which urn you draw from, is the probability weighted average of drawing red from each urn. This is the Law of Total Probability: P(R )=P(R|A)P(A)+P(R|B)P(B) | G20: Total Probability
G21: P(R )= | H21: =H14*E7+H15*J7 -> 0.5
G22: P(G )= | H22: =1-H21 -> 0.5 | K22: =H21 -> 0.5
K23: =1-K22 -> 0.5
A26: What did I learn?
A27: New information (even one draw) updates my prior to a posterior probability. This is computed using the priors, the conditionals, and the total probabilities with Bayes Rule: P(A|R)=P(A)P(R|A)/P(R ) | D27: If Red is drawn | I27: If Green is drawn
D28: P(A|R)= | E28: =H14*E7/H21 -> 0.5 | I28: P(A|G)= | J28: =H14*E8/H22 -> 0.5
D29: P(B|R)= | E29: =1-E28 -> 0.5 | I29: P(B|G)= | J29: =1-J28 -> 0.5
F30: B | G30: =E29 -> 0.5 | K30: B | L30: =J29 -> 0.5
F31: A | G31: =1-G30 -> 0.5 | K31: A | L31: =1-L30 -> 0.5

Sheet BetaDistPopProportion Ws
A1: Worksheet: The Beta Distribution
A2: This spreadsheet computes how uncertainty about an estimate of a "population proportion" (e.g., "what percentage of customers want X?"). It uses a method called a beta distribution, which allows for establishing a "prior" uncertainty which is updated with new data. Enter values in the yellow "prior" fields to set the initial estimate. Enter "hits" and "misses" from a random sample in the yellow "Observations" fields. This distribution is confirmed using the probability of seeing that outcome from a Binomial distribution.
B5: Prior | C5: w/Data
A6: alpha | B6: 1 | C6: =B6+C15 -> 12
A7: beta | B7: 1 | C7: =B7+C16 -> 23
A9: P5 | B9: =_xlfn.BETA.INV(0.05,B6,B7) -> 0.05 | C9: =_xlfn.BETA.INV(0.05,C6,C7) -> 0.2178795701
A10: Median | B10: =_xlfn.BETA.INV(0.5,B6,B7) -> 0.5 | C10: =_xlfn.BETA.INV(0.5,C6,C7) -> 0.3398324983
A11: Mean | B11: =B6/(B6+B7) -> 0.5 | C11: =C6/(C6+C7) -> 0.3428571429
A12: P95 | B12: =_xlfn.BETA.INV(0.95,B6,B7) -> 0.95 | C12: =_xlfn.BETA.INV(0.95,C6,C7) -> 0.4781903942
A14: Observations
A15: "Hits" | C15: 11 | N15: =C11 -> 0.3428571429 | O15: 0
A16: "Misses" | C16: 22 | N16: =N15 -> 0.3428571429 | O16: =MAX(F31:F1029) -> 0.004964717236
A17: Total Observations | C17: =C16+C15 -> 33
A19: Calcs for Chart Boundaries
A20: =A21 -> 0.05 | B20: 0
A21: =B9 -> 0.05 | B21: =VLOOKUP(A21,D$31:E$1029,2) -> 0.001
A22: =A23 -> 0.95 | B22: 0
A23: =B12 -> 0.95 | B23: =VLOOKUP(A23,D$31:E$1029,2) -> 0.001
A24: =A25 -> 0.2178795701 | B24: 0
A25: =C9 -> 0.2178795701 | B25: =VLOOKUP(A25,D$31:F$1029,3) -> 0.001520766343
A26: =A27 -> 0.4781903942 | B26: 0
A27: =C12 -> 0.4781903942 | B27: =VLOOKUP(A27,D$31:F$1029,3) -> 0.001204216336
D29: Chart Distribution Calculations | G29: Prob. of sample result if the hypothetical proportion was the actual proportion | H29: Bayesian Inversion: Prob. that actual proportion is equal to hypothetical proportion
D30: Population Proportion | E30: Prior | F30: w/Data
D31: 0.001 | E31: =_xlfn.BETA.DIST(D31+D$31/2,B$6,B$7,1)-_xlfn.BETA.DIST(D31-D$31/2,B$6,B$7,1) -> 0.001 | F31: =_xlfn.BETA.DIST(D31+D$31/2,C$6,C$7,1)-_xlfn.BETA.DIST(D31-D$31/2,C$6,C$7,1) -> 6.901095323e-26 | G31: =BINOMDIST(C$15,C$15+C$16,D31,0) -> 1.893233225e-25 | H31: =(G31*E31/SUMPRODUCT($G$31:$G$1029,$E$31:$E$1029)) -> 6.436992965e-27
D32: =D31+D$31 -> 0.002 | E32: 0.001 | F32: 3.099589718e-23 | G32: 3.792846241e-22 | H32: =(G32*E32/SUMPRODUCT($G$31:$G$1029,$E$31:$E$1029)) -> 1.289567722e-23
D33: 0.003 | E33: 0.001 | F33: =_xlfn.BETA.DIST(D33+D$31/2,C$6,C$7,1)-_xlfn.BETA.DIST(D33-D$31/2,C$6,C$7,1) -> 1.694636218e-21 | G33: 3.20915476e-20 | H33: 1.091112618e-21
D34: 0.004 | E34: 0.001 | F34: 3.277684508e-20 | G34: 7.43239404e-19 | H34: 2.527013974e-20
D35: 0.005 | E35: 0.001 | F35: 3.411601145e-19 | G35: 8.463328548e-18 | H35: 2.877531706e-19
D36: 0.006 | E36: 0.001 | F36: 2.356733392e-18 | G36: =BINOMDIST(C$15,C$15+C$16,D36,0) -> 6.150743091e-17 | H36: 2.091252651e-18
D37: 0.007 | E37: 0.001 | F37: 1.217661972e-17 | G37: 3.278878194e-16 | H37: 1.114818586e-17
D38: 0.008 | E38: 0.001 | F38: 5.06849955e-17 | G38: 1.393188949e-15 | H38: 4.736842425e-17
D39: 0.009 | E39: 0.001 | F39: 1.785445776e-16 | G39: 4.97795973e-15 | H39: 1.692506308e-16
D40: 0.01 | E40: 0.001 | F40: 5.508001298e-16 | G40: 1.55144955e-14 | H40: 5.274928468e-16
D41: 0.011 | E41: 0.001 | F41: 1.525327644e-15 | G41: 4.329136986e-14 | H41: 1.471906575e-15
D42: 0.012 | E42: 0.001 | F42: 3.862437005e-15 | G42: 1.102579374e-13 | H42: 3.748769872e-15
D43: 0.013 | E43: 0.001 | F43: 9.070138242e-15 | G43: 2.600863804e-13 | H43: 8.842936932e-15
D44: 0.014 | E44: 0.001 | F44: 1.997139844e-14 | G44: 5.747300403e-13 | H44: 1.954082137e-14
D45: 0.015 | E45: 0.001 | F45: 4.159656004e-14 | G45: 1.200505895e-12 | H45: 4.081720044e-14
D46: 0.016 | E46: 0.001 | F46: 8.253628987e-14 | G46: 2.387675764e-12 | H46: 8.118097598e-14
D47: 0.017 | E47: 0.001 | F47: 1.569282179e-13 | G47: 4.548612117e-12 | H47: 1.54652812e-13
D48: 0.018 | E48: 0.001 | F48: 2.872939478e-13 | G48: 8.340914395e-12 | H48: 2.835910894e-13
D49: 0.019 | E49: 0.001 | F49: 5.084924208e-13 | G49: 1.47832918e-11 | H49: 5.026319212e-13
D50: 0.02 | E50: 0.001 | F50: 8.731106385e-13 | G50: 2.541364705e-11 | H50: 8.640639996e-13
D51: 0.021 | E51: 0.001 | F51: 1.458673348e-12 | G51: 4.250057818e-11 | H51: 1.445019658e-12
D52: 0.022 | E52: 0.001 | F52: 2.377119231e-12 | G52: 6.93214552e-11 | H52: 2.356929477e-12
D53: 0.023 | E53: 0.001 | F53: 3.787062071e-12 | G53: 1.105223154e-10 | H53: 3.757758722e-12
D54: 0.024 | E54: 0.001 | F54: 5.909430936e-12 | G54: 1.725770433e-10 | H54: 5.867619471e-12
D55: 0.025 | E55: 0.001 | F55: 9.047163026e-12 | G55: 2.643656453e-10 | H55: 8.98843194e-12
D56: 0.026 | E56: 0.001 | F56: 1.360970611e-11 | G56: 3.978938765e-10 | H56: 1.35283918e-11
D57: 0.027 | E57: 0.001 | F57: 2.014317356e-11 | G57: 5.891790124e-10 | H57: 2.003208642e-11
D58: 0.028 | E58: 0.001 | F58: 2.936708354e-11 | G58: 8.59329161e-10 | H58: 2.921719147e-11
D59: 0.029 | E59: 0.001 | F59: 4.221870373e-11 | G59: 1.235846157e-09 | H59: 4.201876933e-11
D60: 0.03 | E60: 0.001 | F60: 5.990611404e-11 | G60: 1.754184754e-09 | H60: 5.964228165e-11
D61: 0.031 | E61: 0.001 | F61: 8.397119043e-11 | G61: 2.459603508e-09 | H61: 8.362651927e-11
D62: 0.032 | E62: 0.001 | F62: 1.163638031e-10 | G62: 3.409345377e-09 | H62: 1.159177428e-10
D63: 0.033 | E63: 0.001 | F63: 1.595286108e-10 | G63: 4.675188704e-09 | H63: 1.58956416e-10
D64: 0.034 | E64: 0.001 | F64: 2.165059197e-10 | G64: 6.346411746e-09 | H64: 2.157779994e-10
D65: 0.035 | E65: 0.001 | F65: 2.91048157e-10 | G65: 8.533216371e-09 | H65: 2.901293566e-10
D66: 0.036 | E66: 0.001 | F66: 3.877535897e-10 | G66: 1.137065888e-08 | H66: 3.866024018e-10
D67: 0.037 | E67: 0.001 | F67: 5.122189923e-10 | G67: 1.502313805e-08 | H67: 5.107866936e-10
D68: 0.038 | E68: 0.001 | F68: 6.712130362e-10 | G68: 1.968949258e-08 | H68: 6.694427478e-10
D69: 0.039 | E69: 0.001 | F69: 8.72872236e-10 | G69: 2.560876191e-08 | H69: 8.706979051e-10
D70: 0.04 | E70: 0.001 | F70: 1.126921342e-09 | G70: 3.306666595e-08 | H70: 1.124266642e-09
D71: 0.041 | E71: 0.001 | F71: 1.444920116e-09 | G71: 4.24028608e-08 | H71: 1.441697267e-09
D72: 0.042 | E72: 0.001 | F72: 1.840538472e-09 | G72: 5.401902865e-08 | H72: 1.836646974e-09
D73: 0.043 | E73: 0.001 | F73: 2.329861985e-09 | G73: 6.838786079e-08 | H73: 2.325187267e-09
D74: 0.044 | E74: 0.001 | F74: 2.931729793e-09 | G74: 8.60629935e-08 | H74: 2.926141779e-09
D75: 0.045 | E75: 0.001 | F75: 3.668106941e-09 | G75: 1.076899568e-07 | H75: 3.661458532e-09
D76: 0.046 | E76: 0.001 | F76: 4.564493206e-09 | G76: 1.340181963e-07 | H76: 4.556618673e-09
D77: 0.047 | E77: 0.001 | F77: 5.65037042e-09 | G77: 1.659142269e-07 | H77: 5.641083716e-09
D78: 0.048 | E78: 0.001 | F78: 6.959690325e-09 | G78: 2.043759798e-07 | H78: 6.948783313e-09
D79: 0.049 | E79: 0.001 | F79: 8.53140491e-09 | G79: 2.505483975e-07 | H79: 8.518645516e-09
D80: 0.05 | E80: 0.001 | F80: 1.041004119e-08 | G80: 3.057403374e-07 | H80: 1.039517147e-08
D81: 0.051 | E81: 0.001 | F81: 1.264632231e-08 | G81: 3.714428364e-07 | H81: 1.262905644e-08
D82: 0.052 | E82: 0.001 | F82: 1.52978367e-08 | G82: 4.493487914e-07 | H82: 1.527785891e-08
D83: 0.053 | E83: 0.001 | F83: 1.842975722e-08 | G83: 5.413741068e-07 | H83: 1.840671963e-08
D84: 0.054 | E84: 0.001 | F84: 2.211561168e-08 | G84: 6.496803559e-07 | H84: 2.20891321e-08
D85: 0.055 | E85: 0.001 | F85: 2.643810646e-08 | G85: 7.766990038e-07 | H85: 2.640776613e-08
D86: 0.056 | E86: 0.001 | F86: 3.149000465e-08 | G86: 9.251572321e-07 | H86: 3.145534589e-08
D87: 0.057 | E87: 0.001 | F87: 3.73750599e-08 | G87: 1.098105405e-06 | H87: 3.733558376e-08
D88: 0.058 | E88: 0.001 | F88: 4.420900731e-08 | G88: 1.29894621e-06 | H88: 4.416417114e-08
D89: 0.059 | E89: 0.001 | F89: 5.212061227e-08 | G89: 1.531465508e-06 | H89: 5.206982727e-08
D90: 0.06 | E90: 0.001 | F90: 6.12527782e-08 | G90: 1.799864909e-06 | H90: 6.119540692e-08
D91: 0.061 | E91: 0.001 | F91: 7.176371383e-08 | G91: 2.108796108e-06 | H91: 7.169906769e-08
D92: 0.062 | E92: 0.001 | F92: 8.382816069e-08 | G92: 2.463396984e-06 | H92: 8.375549744e-08
D93: 0.063 | E93: 0.001 | F93: 9.763868103e-08 | G93: 2.869329478e-06 | H93: 9.755720224e-08
D94: 0.064 | E94: 0.001 | F94: 1.134070064e-07 | G94: 3.332819262e-06 | H94: 1.133158549e-07
D95: 0.065 | E95: =_xlfn.BETA.DIST(D95+D$31/2,B$6,B$7,1)-_xlfn.BETA.DIST(D95-D$31/2,B$6,B$7,1) -> 0.001 | F95: =_xlfn.BETA.DIST(D95+D$31/2,C$6,C$7,1)-_xlfn.BETA.DIST(D95-D$31/2,C$6,C$7,1) -> 1.313654468e-07 | G95: =BINOMDIST(C$15,C$15+C$16,D95,0) -> 3.860697183e-06 | H95: 1.312637042e-07
D96: =D95+D$31 -> 0.066 | E96: 0.001 | F96: 1.517683605e-07 | G96: 4.460442493e-06 | H96: =(G96*E96/SUMPRODUCT($G$31:$G$1029,$E$31:$E$1029)) -> 1.516550448e-07
D97: 0.067 | E97: 0.001 | F97: 1.748936836e-07 | G97: 5.14022783e-06 | H97: 1.747677462e-07
D98: 0.068 | E98: 0.001 | F98: 2.010445185e-07 | G98: 5.908965959e-06 | H98: 2.009048426e-07
D99: 0.069 | E99: 0.001 | F99: 2.305507819e-07 | G99: 6.776358221e-06 | H99: 2.303961795e-07
D100: 0.07 | E100: 0.001 | F100: 2.637709093e-07 | G100: 7.752944675e-06 | H100: 2.636001189e-07
D101: 0.071 | E101: 0.001 | F101: 3.010936154e-07 | G101: 8.850155883e-06 | H101: 3.009053e-07
D102: 0.072 | E102: 0.001 | F102: 3.429397096e-07 | G102: 1.008036631e-05 | H102: 3.427324544e-07
D103: 0.073 | E103: 0.001 | F103: 3.89763964e-07 | G103: 1.145694924e-05 | H103: 3.895362742e-07
D104: 0.074 | E104: 0.001 | F104: 4.420570319e-07 | G104: 1.299433325e-05 | H104: 4.418073306e-07
D105: 0.075 | E105: 0.001 | F105: 5.003474148e-07 | G105: 1.470806004e-05 | H105: 5.000740414e-07
D106: 0.076 | E106: 0.001 | F106: 5.652034756e-07 | G106: 1.661484364e-05 | H106: 5.649046836e-07
D107: 0.077 | E107: 0.001 | F107: 6.372354947e-07 | G107: 1.87326309e-05 | H107: 6.369094505e-07
D108: 0.078 | E108: 0.001 | F108: 7.170977673e-07 | G108: 2.108066318e-05 | H108: 7.167425481e-07
D109: 0.079 | E109: 0.001 | F109: 8.054907367e-07 | G109: 2.36795391e-05 | H109: 8.051043294e-07
D110: 0.08 | E110: 0.001 | F110: 9.031631624e-07 | G110: 2.655127831e-05 | H110: 9.027434625e-07
D111: 0.081 | E111: 0.001 | F111: 1.010914318e-06 | G111: 2.971938613e-05 | H111: 1.010459129e-06
D112: 0.082 | E112: 0.001 | F112: 1.129596218e-06 | G112: 3.320891902e-05 | H112: 1.129103247e-06
D113: 0.083 | E113: 0.001 | F113: 1.260115859e-06 | G113: 3.704655062e-05 | H113: 1.259582721e-06
D114: 0.084 | E114: 0.001 | F114: 1.403437492e-06 | G114: 4.126063846e-05 | H114: 1.402861708e-06
D115: 0.085 | E115: 0.001 | F115: 1.560584898e-06 | G115: 4.588129093e-05 | H115: 1.559963891e-06
D116: 0.086 | E116: 0.001 | F116: 1.732643679e-06 | G116: 5.094043466e-05 | H116: 1.731974778e-06
D117: 0.087 | E117: 0.001 | F117: 1.920763548e-06 | G117: 5.647188195e-05 | H117: 1.920043986e-06
D118: 0.088 | E118: 0.001 | F118: 2.126160626e-06 | G118: 6.251139826e-05 | H118: 2.125387541e-06
D119: 0.089 | E119: 0.001 | F119: 2.350119728e-06 | G119: 6.909676947e-05 | H119: 2.349290162e-06
D120: 0.09 | E120: 0.001 | F120: 2.59399664e-06 | G120: 7.62678689e-05 | H120: 2.593107543e-06
D121: 0.091 | E121: 0.001 | F121: 2.859220385e-06 | G121: 8.406672384e-05 | H121: 2.858268611e-06
D122: 0.092 | E122: 0.001 | F122: 3.147295459e-06 | G122: 9.253758147e-05 | H122: 3.14627777e-06
D123: 0.093 | E123: 0.001 | F123: 3.459804046e-06 | G123: 0.000101726974 | H123: 3.458717115e-06
D124: 0.094 | E124: 0.001 | F124: 3.798408203e-06 | G124: 0.0001116837827 | H124: 3.797248612e-06
D125: 0.095 | E125: 0.001 | F125: 4.164851999e-06 | G125: 0.0001224593013 | H125: 4.163616244e-06
D126: 0.096 | E126: 0.001 | F126: 4.560963621e-06 | G126: 0.0001341072974 | H126: 4.559648111e-06
D127: 0.097 | E127: 0.001 | F127: 4.988657418e-06 | G127: 0.0001466840729 | H127: 4.987258479e-06
D128: 0.098 | E128: 0.001 | F128: 5.449935901e-06 | G128: 0.0001602485229 | H128: 5.448449778e-06
D129: 0.099 | E129: 0.001 | F129: 5.946891671e-06 | G129: 0.0001748621922 | H129: 5.945314533e-06
D130: 0.1 | E130: 0.001 | F130: 6.481709292e-06 | G130: 0.0001905893304 | H130: 6.480037232e-06
D131: 0.101 | E131: 0.001 | F131: 7.056667078e-06 | G131: 0.0002074969447 | H131: 7.054896119e-06
D132: 0.102 | E132: 0.001 | F132: 7.674138811e-06 | G132: 0.0002256548502 | H132: 7.672264905e-06
D133: 0.103 | E133: 0.001 | F133: 8.336595365e-06 | G133: 0.0002451357178 | H133: 8.334614404e-06
D134: 0.104 | E134: 0.001 | F134: 9.046606251e-06 | G134: 0.0002660151195 | H134: 9.044514063e-06
D135: 0.105 | E135: 0.001 | F135: 9.80684105e-06 | G135: 0.0002883715709 | H135: 9.80463341e-06
D136: 0.106 | E136: 0.001 | F136: 1.062007076e-05 | G136: 0.0003122865702 | H136: 1.061774339e-05
D137: 0.107 | E137: 0.001 | F137: 1.148916901e-05 | G137: 0.0003378446349 | H137: 1.148671759e-05
D138: 0.108 | E138: 0.001 | F138: 1.241711321e-05 | G138: 0.0003651333344 | H138: 1.241453337e-05
D139: 0.109 | E139: 0.001 | F139: 1.340698552e-05 | G139: 0.0003942433193 | H139: 1.340427286e-05
D140: 0.11 | E140: 0.001 | F140: 1.446197373e-05 | G140: 0.0004252683473 | H140: 1.445912381e-05
D141: 0.111 | E141: 0.001 | F141: 1.558537201e-05 | G141: 0.0004583053052 | H141: 1.558238038e-05
D142: 0.112 | E142: 0.001 | F142: 1.678058152e-05 | G142: 0.0004934542264 | H142: 1.67774437e-05
D143: 0.113 | E143: 0.001 | F143: 1.805111088e-05 | G143: 0.0005308183053 | H143: 1.804782238e-05
D144: 0.114 | E144: 0.001 | F144: 1.940057651e-05 | G144: 0.0005705039067 | H144: 1.939713283e-05
D145: 0.115 | E145: 0.001 | F145: 2.083270278e-05 | G145: 0.000612620571 | H145: 2.082909941e-05
D146: 0.116 | E146: 0.001 | F146: 2.235132206e-05 | G146: 0.0006572810151 | H146: 2.234755451e-05
D147: 0.117 | E147: 0.001 | F147: 2.396037458e-05 | G147: 0.0007046011285 | H147: 2.395643837e-05
D148: 0.118 | E148: 0.001 | F148: 2.566390814e-05 | G148: 0.0007546999648 | H148: 2.56597988e-05
D149: 0.119 | E149: 0.001 | F149: 2.746607766e-05 | G149: 0.0008076997285 | H149: 2.746179077e-05
D150: 0.12 | E150: 0.001 | F150: 2.937114457e-05 | G150: 0.000863725756 | H150: 2.936667571e-05
D151: 0.121 | E151: 0.001 | F151: 3.138347597e-05 | G151: 0.0009229064934 | H151: 3.137882077e-05
D152: 0.122 | E152: 0.001 | F152: 3.350754372e-05 | G152: 0.0009853734668 | H152: 3.350269787e-05
D153: 0.123 | E153: 0.001 | F153: 3.574792325e-05 | G153: 0.00105126125 | H153: 3.57428825e-05
D154: 0.124 | E154: 0.001 | F154: 3.810929229e-05 | G154: 0.001120707424 | H154: 3.810405242e-05
D155: 0.125 | E155: 0.001 | F155: 4.059642931e-05 | G155: 0.001193852535 | H155: 4.05909862e-05
D156: 0.126 | E156: 0.001 | F156: 4.321421188e-05 | G156: 0.001270840043 | H156: 4.320856148e-05
D157: 0.127 | E157: 0.001 | F157: 4.596761477e-05 | G157: 0.001351816268 | H157: 4.596175311e-05
D158: 0.128 | E158: 0.001 | F158: 4.886170794e-05 | G158: 0.001436930328 | H158: 4.885563115e-05
D159: 0.129 | E159: =_xlfn.BETA.DIST(D159+D$31/2,B$6,B$7,1)-_xlfn.BETA.DIST(D159-D$31/2,B$6,B$7,1) -> 0.001 | F159: =_xlfn.BETA.DIST(D159+D$31/2,C$6,C$7,1)-_xlfn.BETA.DIST(D159-D$31/2,C$6,C$7,1) -> 5.190165426e-05 | G159: =BINOMDIST(C$15,C$15+C$16,D159,0) -> 0.001526334075 | H159: 5.189535856e-05
D160: =D159+D$31 -> 0.13 | E160: 0.001 | F160: 5.509270709e-05 | G160: 0.001620182024 | H160: =(G160*E160/SUMPRODUCT($G$31:$G$1029,$E$31:$E$1029)) -> 5.508618883e-05
D161: 0.131 | E161: 0.001 | F161: 5.844020771e-05 | G161: 0.001718631275 | H161: 5.843346334e-05
D162: 0.132 | E162: 0.001 | F162: 6.194958247e-05 | G162: 0.001821841428 | H162: 6.194260856e-05
D163: 0.133 | E163: 0.001 | F163: 6.562633984e-05 | G163: 0.001929974503 | H163: 6.561913311e-05
D164: 0.134 | E164: 0.001 | F164: 6.947606723e-05 | G164: 0.002043194839 | H164: 6.946862452e-05
D165: 0.135 | E165: 0.001 | F165: 7.350442763e-05 | G165: 0.002161668998 | H165: 7.349674595e-05
D166: 0.136 | E166: 0.001 | F166: 7.77171561e-05 | G166: 0.002285565664 | H166: 7.770923259e-05
D167: 0.137 | E167: 0.001 | F167: 8.212005602e-05 | G167: 0.002415055529 | H167: 8.2111888e-05
D168: 0.138 | E168: 0.001 | F168: 8.671899523e-05 | G168: 0.002550311182 | H168: 8.671058018e-05
D169: 0.139 | E169: 0.001 | F169: 9.151990191e-05 | G169: 0.002691506985 | H169: 9.15112375e-05
D170: 0.14 | E170: 0.001 | F170: 9.652876039e-05 | G170: 0.002838818955 | H170: 9.651984445e-05
D171: 0.141 | E171: 0.001 | F171: 0.0001017516067 | G171: 0.002992424625 | H171: 0.0001017424373
D172: 0.142 | E172: 0.001 | F172: 0.0001071945239 | G172: 0.003152502919 | H172: 0.0001071850992
D173: 0.143 | E173: 0.001 | F173: 0.0001128636376 | G173: 0.003319234003 | H173: 0.0001128539561
D174: 0.144 | E174: 0.001 | F174: 0.0001187651107 | G174: 0.003492799148 | H174: 0.000118755171
D175: 0.145 | E175: 0.001 | F175: 0.0001249051385 | G175: 0.003673380575 | H175: 0.0001248949395
D176: 0.146 | E176: 0.001 | F176: 0.0001312899435 | G176: 0.003861161306 | H176: 0.0001312794844
D177: 0.147 | E177: 0.001 | F177: 0.0001379257701 | G177: 0.004056325002 | H177: 0.0001379150501
D178: 0.148 | E178: 0.001 | F178: 0.0001448188788 | G178: 0.004259055807 | H178: 0.0001448078974
D179: 0.149 | E179: 0.001 | F179: 0.0001519755408 | G179: 0.004469538174 | H179: 0.0001519642979
D180: 0.15 | E180: 0.001 | F180: 0.0001594020322 | G180: 0.004687956701 | H180: 0.0001593905278
D181: 0.151 | E181: 0.001 | F181: 0.0001671046281 | G181: 0.004914495957 | H181: 0.0001670928625
D182: 0.152 | E182: 0.001 | F182: 0.0001750895964 | G182: 0.005149340299 | H182: 0.0001750775702
D183: 0.153 | E183: 0.001 | F183: 0.0001833631918 | G183: 0.0053926737 | H183: 0.0001833509058
D184: 0.154 | E184: 0.001 | F184: 0.0001919316498 | G184: 0.005644679558 | H184: 0.000191919105
D185: 0.155 | E185: 0.001 | F185: 0.0002008011797 | G185: 0.005905540514 | H185: 0.0002007883775
D186: 0.156 | E186: 0.001 | F186: 0.0002099779589 | G186: 0.00617543826 | H186: 0.0002099649008
D187: 0.157 | E187: 0.001 | F187: 0.0002194681258 | G187: 0.006454553349 | H187: 0.0002194548139
D188: 0.158 | E188: 0.001 | F188: 0.0002292777736 | G188: 0.006743064998 | H188: 0.0002292642099
D189: 0.159 | E189: 0.001 | F189: 0.0002394129434 | G189: 0.007041150895 | H189: 0.0002393991304
D190: 0.16 | E190: 0.001 | F190: 0.0002498796175 | G190: 0.007348986999 | H190: 0.000249865558
D191: 0.161 | E191: 0.001 | F191: 0.0002606837126 | G191: 0.007666747338 | H191: 0.0002606694095
D192: 0.162 | E192: 0.001 | F192: 0.0002718310729 | G192: 0.007994603812 | H192: 0.0002718165296
D193: 0.163 | E193: 0.001 | F193: 0.0002833274636 | G193: 0.008332725988 | H193: 0.0002833126836
D194: 0.164 | E194: 0.001 | F194: 0.0002951785632 | G194: 0.008681280895 | H194: 0.0002951635504
D195: 0.165 | E195: 0.001 | F195: 0.0003073899574 | G195: 0.009040432824 | H195: 0.000307374716
D196: 0.166 | E196: 0.001 | F196: 0.0003199671315 | G196: 0.00941034312 | H196: 0.0003199516661
D197: 0.167 | E197: 0.001 | F197: 0.000332915464 | G197: 0.009791169976 | H197: 0.0003328997792
D198: 0.168 | E198: 0.001 | F198: 0.0003462402191 | G198: 0.01018306823 | H198: 0.00034622432
D199: 0.169 | E199: 0.001 | F199: 0.0003599465401 | G199: 0.01058618917 | H199: 0.0003599304319
D200: 0.17 | E200: 0.001 | F200: 0.0003740394422 | G200: 0.01100068031 | H200: 0.0003740231306
D201: 0.171 | E201: 0.001 | F201: 0.0003885238058 | G201: 0.0114266852 | H201: 0.0003885072968
D202: 0.172 | E202: 0.001 | F202: 0.0004034043698 | G202: 0.01186434322 | H202: 0.0004033876694
D203: 0.173 | E203: 0.001 | F203: 0.0004186857242 | G203: 0.01231378938 | H203: 0.000418668839
D204: 0.174 | E204: 0.001 | F204: 0.0004343723037 | G204: 0.01277515413 | H204: 0.0004343552405
D205: 0.175 | E205: 0.001 | F205: 0.0004504683813 | G205: 0.01324856315 | H205: 0.0004504511471
D206: 0.176 | E206: 0.001 | F206: 0.0004669780609 | G206: 0.01373413714 | H206: 0.0004669606629
... 823 more rows

Sheet Rule of Succession
A1: Laplace's Rule of Succession
Q23: =1/(12+2) -> 0.07142857143
A25: Other Handy "Naïve" Estimators
A52: Process for Estimating the Baseline

Sheet CatchRecatch Ws
A1: Worksheet: Computing a 90% Confidence with Catch/Recatch
A2: This shows the calculations for the estimation of the size of a population when you can't actually count or even see the entire population. Note the similarities to and differences from the 90% CI calculation on other worksheets.
A3: 90% Confidence Interval Calculations
A4: First sample size (i.e. the fish that were tagged) | B4: 1000
A5: The second sample size | B5: 1000
A6: Overlap between samples (i.e. the tagged fish that showed up in the second sample) - THIS APPROXIMATION IS ONLY VALID WHERE THIS VALUE >10 | B6: 50
C7: Beta Distribution
A11: Computing bounds for 90% CI for the percentage of tagged fish
A12: Upper bound | C12: =_xlfn.BETA.INV(0.95,B6+1,B5-B6+1) -> 0.06280102904
A13: Lower bound | C13: =_xlfn.BETA.INV(0.05,B6+1,B5-B6+1) -> 0.04001424326
A14: Computing bounds for 90% CI for the total population of fish
A15: Upper bound | C15: =(B4-B6)/C13+B5 -> 24741.54607
A16: Lower bound | C16: =(B4-B6)/C12+B5 -> 16127.14066

Sheet Mathless Table
A1: The "Mathless Table"

Sheet EstimatingDistAndMean Ex
A1: Example Estimating a Population Distribution and Mean
A2: This worksheet computes a distribution for he estimate of the mean of several different population data sets. For each data set it will also compute an estimate of the underlying distribution. The graph on the right also shows how the 90% confidence interval for the mean narrows as more samples are taken. The user can also explore different groups of sample points by changing the scenario. Different populations can be selected from the drop down menu.
A4: Scenario | D4: Estimate of True Population Distribution and Its Mean | K4: 90% Confidence Interval for Estimate of Mean as Samples Increase
A5: Different scenarios will randomly changes the samples to show how different random samples could change the estimates. | D5: The chart below shows the "true" shape of the distribution for a population (dashed line). It also shows an estimate of that true shape (dark blue) and an estimate of the true mean (light blue) based on a random sample of values from the population (green diamonds) | K5: This chart shows how the estimate of the mean of a population improves with sample size. The true mean is shown as a dashed grey line. The estimate of the mean is shown with blue lines representing upper and lower bounds of the 90% confidence interval.
B6: 1286
A7: Number of Samples
A8: Enter number of samples or use slider bar below. For a given scenario, increasing the number of samples improves estimates.
B9: 31
A10: True, Hidden Distribution
A11: Population # | B11: 1
A12: Reveal Distribution? | B12: FALSE
A13: =IF(B12,OFFSET(W18,,B11-1),"") -> 
A16: Estimates Based on Samples
A17: Average of sample | B17: =IFERROR(AVERAGE(L26:L227),"") -> 102.4516129
A18: Standard Deviation of Sample | B18: =IFERROR(_xlfn.STDEV.S(L26:L227),"") -> 14.71470627 | W18: Normal | X18: Beta | Y18: Uniform | Z18: lognormal | AA18: MLB Player Batting | AB18: book ratings w/>10 reviews | AC18: Book num of pages | AD18: NJ teacher salary | AE18: age of working adults | AF18: Work hours per month
A19: Error of the Estimate of the Mean | B19: =IFERROR(B18/B9^0.5,"") -> 2.642839264 | W19: 100.5 | X19: 66.9166667 | Y19: 50.25 | Z19: 43.86670894 | AA19: 261.2139177 | AB19: 4.637817596 | AC19: 354.7810768 | AD19: 73281.171 | AE19: 38.06941754 | AF19: 201.2740661
W21: 0 | X21: 0 | Y21: 0 | Z21: 0 | AA21: 140 | AB21: 0 | AC21: 0 | AD21: 0 | AE21: 0 | AF21: 90
A22: Increments for chart | B22: =OFFSET(W23,,B11-1) -> 1 | W22: 200 | X22: 100 | Y22: 100 | Z22: 200 | AA22: 400 | AB22: 8 | AC22: 1800 | AD22: 300000 | AE22: 98 | AF22: 310
B23: Distribution curves | I23: Sample Values | N23: Running Calculations for Chart Above | T23: True Mean Plot | W23: =(W22-W21)/200 -> 1 | X23: 0.5 | Y23: 0.5 | Z23: 1 | AA23: =(AA22-AA21)/200 -> 1.3 | AB23: =(AB22-AB21)/200 -> 0.04 | AC23: 9 | AD23: 1500 | AE23: 0.49 | AF23: 1.1
A24: True Population Cumulative Distribution | B24: True Population Distribution | C24: Horizontal axis values | D24: Estimated Distribution pdf | F24: Error of the Mean Estimate pdf | I24: Y-axis Value for Samples | J24: Sample Count | K24: Random Number | L24: For Calcs | M24: For Chart | O24: Running Average | T24: Mean | U24: Count | W24: =NORMDIST(C25,100,15,1) -> 1.308392469e-11 | X24: =IFERROR(BETADIST(C25,6,3,0,100),"") -> 0 | Y24: =C25/100 -> 0 | Z24: 0 | AA24: 1.561051409e-06 | AB24: 0.0001248510013 | AC24: 2.24927649e-11 | AD24: 0.0001431941569 | AE24: 1.880110674e-18 | AF24: 4.363697002e-05 | AT24: 1 | AU24: 2 | AV24: 3 | AW24: 4 | AX24: 5 | AY24: 6 | AZ24: 7 | BA24: 8 | BB24: 9 | BC24: 10 | BD24: 11 | BE24: 12 | BF24: 13 | BG24: 14 | BH24: 15 | BI24: 16 | BJ24: 17 | BK24: 18 | BL24: 19 | BM24: 20 | BN24: 21 | BO24: 22 | BP24: 23 | BQ24: 24 | BR24: 25 | BS24: 26 | BT24: 27 | BU24: 28 | BV24: 29 | BW24: 30
A25: =OFFSET(W24,,B$11-1) -> 1.308392469e-11 | B25: =IF(B12,A25/1000,"") ->  | C25: =OFFSET(W21,,B$11-1) -> 0 | D25: =_xlfn.T.DIST((C25+B$22/2-B$17)/B$18,B$9-1,1)-_xlfn.T.DIST((C25-B$22/2-B$17)/B$18,B$9-1,1) -> 9.058679623e-09 | F25: =_xlfn.T.DIST((C25+B$22/2-B$17)/B$19,B$9-1,1)-_xlfn.T.DIST((C25-B$22/2-B$17)/B$19,B$9-1,1) -> 4.980745874e-28 | J25: 0 | K25: Not applicable | O25: =NA() ->  | P25: =NA() ->  | U25: 0 | W25: =NORMDIST(C26,100,15,1) -> 2.055788909e-11 | X25: =IFERROR(BETADIST(C26,6,3,0,100),"") -> 2.75221e-11 | Y25: =C26/100 -> 0.01 | Z25: =_xlfn.LOGNORM.DIST(C26,(LN(120)+LN(10))/2,(LN(120)-LN(10))/3.29,1) -> 1.342144395e-06 | AA25: 3.280644506e-06 | AB25: 0.0003148691637 | AC25: 6.74782947e-11 | AD25: 0.0003069917895 | AE25: 3.969122535e-18 | AF25: 0.0001254562888
A26: =OFFSET(W25,,B$11-1) -> 2.055788909e-11 | B26: =IF(B$12,A26-A25,"") ->  | C26: =C25+OFFSET(W$23,,B$11-1) -> 1 | D26: =_xlfn.T.DIST((C26+B$22/2-B$17)/B$18,B$9-1,1)-_xlfn.T.DIST((C26-B$22/2-B$17)/B$18,B$9-1,1) -> 1.092281429e-08 | F26: =_xlfn.T.DIST((C26+B$22/2-B$17)/B$19,B$9-1,1)-_xlfn.T.DIST((C26-B$22/2-B$17)/B$19,B$9-1,1) -> 6.710750733e-28 | I26: =IF(L26<>"",0,"") -> 0 | J26: =IF(B$9>J25,J25+1,"") -> 1 | K26: =IFERROR(( MOD(( MOD( MOD( 999999999999989, MOD( PM_Index*2499997 +$J26*1800451, 7450589 ) * 4658 + 7450581 ) * 383, 99991 ) * 7440893 + MOD( MOD( 999999999999989, MOD( PM_Index*2246527 +$J26*2399993, 7450987 ) * 7580 + 7560584 ) * 17669, 7440893 )) * 1343, 4294967296 ) + 0.5 ) / 4294967296,"") -> 0.9277359835 | L26: =IFERROR(VLOOKUP(K26,A$25:C$225,3),"") -> 121 | M26: =IF(L26="",NA(),L26) -> 121 | O26: =IF(K26="","",AVERAGE(L$26:L26)) -> 121 | P26: =NA() ->  | Q26: =NA() ->  | R26: =NA() ->  | S26: =NA() ->  | T26: =IF($B$12,OFFSET(W$19,,B$11-1),"") ->  | U26: 1 | W26: 3.216088292e-11 | X26: 1.7310976e-09 | Y26: 0.02 | Z26: =_xlfn.LOGNORM.DIST(C27,(LN(120)+LN(10))/2,(LN(120)-LN(10))/3.29,1) -> 7.972021754e-05 | AA26: 5.174880915e-06 | AB26: 0.0004962405508 | AC26: 1.349565894e-10 | AD26: 0.0004883023766 | AE26: 8.147146256e-18 | AF26: 0.000266107594
A27: 3.216088292e-11 | B27: =IF(B$12,A27-A26,"") ->  | C27: 2 | D27: =_xlfn.T.DIST((C27+B$22/2-B$17)/B$18,B$9-1,1)-_xlfn.T.DIST((C27-B$22/2-B$17)/B$18,B$9-1,1) -> 1.317605673e-08 | F27: =_xlfn.T.DIST((C27+B$22/2-B$17)/B$19,B$9-1,1)-_xlfn.T.DIST((C27-B$22/2-B$17)/B$19,B$9-1,1) -> 9.067333144e-28 | I27: 0 | J27: 2 | K27: 0.5643106551 | L27: =IFERROR(VLOOKUP(K27,A$25:C$225,3),"") -> 102 | M27: =IF(L27="",NA(),L27) -> 102 | O27: =IF(K27="","",AVERAGE(L$26:L27)) -> 111.5 | P27: =IFERROR(_xlfn.STDEV.S(L$26:L27)/J27^0.5,"") -> 9.5 | Q27: =IFERROR(TINV(0.1,J27-1)*P27,"") -> 59.98063939 | R27: =IFERROR(O27+Q27,"") -> 171.4806394 | S27: =IFERROR(O27-Q27,"") -> 51.51936061 | T27: =IF($B$12,OFFSET(W$19,,B$11-1),"") ->  | U27: 2 | W27: 5.009415788e-11 | X27: 1.93760181e-08 | Y27: 0.03 | Z27: 0.0005996384382 | AA27: 7.258533931e-06 | AB27: 0.00062678577 | AC27: 0.003540995842 | AD27: 0.0007128802629 | AE27: 1.441418184e-17 | AF27: 0.0004895522574
A28: 5.009415788e-11 | B28: =IF(B$12,A28-A27,"") ->  | C28: 3 | D28: =_xlfn.T.DIST((C28+B$22/2-B$17)/B$18,B$9-1,1)-_xlfn.T.DIST((C28-B$22/2-B$17)/B$18,B$9-1,1) -> 1.590055102e-08 | F28: 1.228691681e-27 | I28: 0 | J28: 3 | K28: 0.5236542363 | L28: =IFERROR(VLOOKUP(K28,A$25:C$225,3),"") -> 100 | M28: 100 | O28: =IF(K28="","",AVERAGE(L$26:L28)) -> 107.6666667 | P28: =IFERROR(_xlfn.STDEV.S(L$26:L28)/J28^0.5,"") -> 6.691619967 | Q28: =IFERROR(TINV(0.1,J28-1)*P28,"") -> 19.53943381 | R28: =IFERROR(O28+Q28,"") -> 127.2061005 | S28: =IFERROR(O28-Q28,"") -> 88.12723285 | U28: 3 | W28: =NORMDIST(C29,100,15,1) -> 7.768847582e-11 | X28: 1.069613056e-07 | Y28: 0.04 | Z28: 0.002130508045 | AA28: 9.555941544e-06 | AB28: 0.0007062939246 | AC28: 0.007683553512 | AD28: 0.0008869796335 | AE28: 2.277022928e-17 | AF28: 0.0008216997301
A29: 7.768847582e-11 | C29: 4 | D29: =_xlfn.T.DIST((C29+B$22/2-B$17)/B$18,B$9-1,1)-_xlfn.T.DIST((C29-B$22/2-B$17)/B$18,B$9-1,1) -> 1.919592285e-08 | F29: =_xlfn.T.DIST((C29+B$22/2-B$17)/B$19,B$9-1,1)-_xlfn.T.DIST((C29-B$22/2-B$17)/B$19,B$9-1,1) -> 1.669878696e-27 | I29: 0 | J29: 4 | K29: 0.5588320376 | L29: 102 | M29: 102 | O29: =IF(K29="","",AVERAGE(L$26:L29)) -> 106.25 | P29: =IFERROR(_xlfn.STDEV.S(L$26:L29)/J29^0.5,"") -> 4.939213838 | Q29: 11.62376524 | R29: 117.8737652 | S29: 94.62623476 | U29: 4 | W29: 1.199602262e-10 | X29: 4.008203125e-07 | Y29: 0.05 | Z29: 0.005192754076 | AA29: 1.210005806e-05 | AB29: 0.0007543784318 | AC29: 0.0123858336 | AD29: 0.001076531611 | AE29: 3.321528858e-17 | AF29: 0.001283589265
A30: 1.199602262e-10 | C30: 5 | D30: 2.31830159e-08 | F30: 2.276302824e-27 | I30: 0 | J30: 5 | K30: 0.09824435494 | L30: 80 | M30: 80 | O30: =IF(K30="","",AVERAGE(L$26:L30)) -> 101 | P30: =IFERROR(_xlfn.STDEV.S(L$26:L30)/J30^0.5,"") -> 6.496152708 | Q30: 13.84880227 | R30: 114.8488023 | S30: 87.15119773 | U30: 5 | W30: 1.844292818e-10 | X30: 1.175525914e-06 | Y30: 0.06 | Z30: 0.01013452679 | AA30: 1.512055328e-05 | AB30: 0.0007887546366 | AC30: 0.01758948906 | AD30: 0.001279475848 | AE30: 4.574935974e-17 | AF30: 0.001886519722
A31: 1.844292818e-10 | C31: 6 | D31: 2.800842688e-08 | F31: 3.112457225e-27 | I31: 0 | J31: 6 | K31: 0.3062667438 | L31: 92 | M31: 92 | O31: =IF(K31="","",AVERAGE(L$26:L31)) -> 99.5 | P31: =IFERROR(_xlfn.STDEV.S(L$26:L31)/J31^0.5,"") -> 5.512107885 | Q31: 11.10716403 | R31: 110.607164 | S31: 88.39283597 | U31: 6 | W31: 2.823158037e-10 | X31: 2.910977442e-06 | Y31: 0.07 | Z31: 0.01711994266 | AA31: 1.871270297e-05 | AB31: 0.0008184911082 | AC31: 0.02322551292 | AD31: 0.001499933039 | AE31: 6.037244277e-17 | AF31: 0.002637309376
A32: 2.823158037e-10 | C32: 7 | D32: 3.385000859e-08 | F32: 4.269046023e-27 | I32: 0 | J32: 7 | K32: 0.860283424 | L32: 116 | M32: 116 | O32: =IF(K32="","",AVERAGE(L$26:L32)) -> 101.8571429 | P32: =IFERROR(_xlfn.STDEV.S(L$26:L32)/J32^0.5,"") -> 5.220967669 | Q32: 10.14528142 | R32: 112.0024243 | S32: 91.71186144 | U32: 7 | W32: 4.302828474e-10 | X32: 6.368631194e-06 | Y32: 0.08 | Z32: 0.02616308392 | AA32: 2.299199286e-05 | AB32: 0.0008480166828 | AC32: 0.02925387643 | AD32: 0.001729661794 | AE32: 7.708453765e-17 | AF32: 0.003535178995
A33: 4.302828474e-10 | C33: 8 | D33: 4.092354662e-08 | F33: 5.87406791e-27 | I33: 0 | J33: 8 | K33: 0.907259656 | L33: 119 | M33: 119 | O33: =IF(K33="","",AVERAGE(L$26:L33)) -> 104 | P33: =IFERROR(_xlfn.STDEV.S(L$26:L33)/J33^0.5,"") -> 5.003570154 | Q33: 9.479656963 | R33: 113.479657 | S33: 94.52034304 | U33: 8 | W33: 6.52960999e-10 | X33: 1.267492099e-05 | Y33: 0.09 | Z33: 0.03717150119 | AA33: 2.799683108e-05 | AB33: 0.0008790185362 | AC33: 0.03565072511 | AD33: 0.002235477125 | AE33: 9.58856444e-17 | AF33: 0.004563569909
A34: 6.52960999e-10 | C34: 9 | D34: 4.949085774e-08 | F34: 8.108772748e-27 | I34: 0 | J34: 9 | K34: 0.8153955623 | L34: 113 | M34: 113 | O34: =IF(K34="","",AVERAGE(L$26:L34)) -> 105 | P34: =IFERROR(_xlfn.STDEV.S(L$26:L34)/J34^0.5,"") -> 4.524623987 | Q34: 8.413755655 | R34: 113.4137557 | S34: 96.58624434 | U34: 9 | W34: 9.86587645e-10 | X34: 2.341e-05 | Y34: 0.1 | Z34: 0.04998490554 | AA34: 3.389832824e-05 | AB34: 0.0009100203895 | AC34: 0.04241522867 | AD34: 0.002779408886 | AE34: 1.16775763e-16 | AF34: 0.005698325938
A35: 9.86587645e-10 | C35: 10 | D35: 5.986960981e-08 | F35: 1.123071721e-26 | I35: 0 | J35: 10 | K35: 0.03389083769 | L35: 72 | M35: 72 | O35: =IF(K35="","",AVERAGE(L$26:L35)) -> 101.7 | P35: =IFERROR(_xlfn.STDEV.S(L$26:L35)/J35^0.5,"") -> 5.221855779 | Q35: 9.572251361 | R35: 111.2722514 | S35: 92.12774864 | U35: 10 | W35: 1.484226592e-09 | X35: 4.070001957e-05 | Y35: 0.11 | Z35: 0.06440517018 | AA35: 4.090945127e-05 | AB35: 0.0009368043036 | AC35: 0.04957422135 | AD35: 0.003386181249 | AE35: 1.397548935e-16 | AF35: 0.006907498585
A36: 1.484226592e-09 | C36: 11 | D36: 7.244522547e-08 | F36: 1.56072014e-26 | I36: 0 | J36: 11 | K36: 0.2388913654 | L36: 89 | M36: 89 | O36: =IF(K36="","",AVERAGE(L$26:L36)) -> 100.5454545 | P36: =IFERROR(_xlfn.STDEV.S(L$26:L36)/J36^0.5,"") -> 4.862404262 | Q36: 8.812918688 | R36: 109.3583732 | S36: 91.73253586 | U36: 11 | W36: 2.2232165e-09 | X36: 6.731124572e-05 | Y36: 0.12 | Z36: 0.08021788587 | AA36: 4.929368638e-05 | AB36: 0.0009557850302 | AC36: 0.0571791675 | AD36: 0.004054764039 | AE36: 1.648230358e-16 | AF36: 0.008164983591
A37: 2.2232165e-09 | C37: 12 | D37: 8.768530593e-08 | F37: 2.176394407e-26 | I37: 0 | J37: 12 | K37: 0.3851776867 | L37: 95 | M37: 95 | O37: =IF(K37="","",AVERAGE(L$26:L37)) -> 100.0833333 | P37: =IFERROR(_xlfn.STDEV.S(L$26:L37)/J37^0.5,"") -> 4.462738549 | Q37: 8.014564409 | R37: 108.0978977 | S37: 92.06876892 | U37: 12 | W37: 3.315745978e-09 | X37: 0.0001067443984 | Y37: 0.13 | Z37: 0.09720700554 | AA37: 5.93823631e-05 | AB37: 0.0009663298783 | AC37: 0.06530321465 | AD37: 0.004841816814 | AE37: 1.9198019e-16 | AF37: 0.009449936512
A38: 3.315745978e-09 | C38: 13 | D38: 1.061571014e-07 | F38: 3.045621479e-26 | I38: 0 | J38: 13 | K38: 0.5085038551 | L38: 100 | M38: 100 | O38: =IF(K38="","",AVERAGE(L$26:L38)) -> 100.0769231 | P38: =IFERROR(_xlfn.STDEV.S(L$26:L38)/J38^0.5,"") -> 4.105127404 | Q38: 7.316517487 | R38: 107.3934406 | S38: 92.76040559 | U38: 13 | W38: 4.923791473e-09 | X38: 0.0001633276831 | Y38: 0.14 | Z38: 0.1151642704 | AA38: 7.155947153e-05 | AB38: 0.0009707587145 | AC38: 0.07403550159 | AD38: 0.005739098186 | AE38: 2.21226356e-16 | AF38: 0.01074482464
A39: 4.923791473e-09 | C39: 14 | D39: 1.285486611e-07 | F39: 4.277319321e-26 | I39: 0 | J39: 14 | K39: 0.741082687 | L39: 109 | M39: 109 | O39: =IF(K39="","",AVERAGE(L$26:L39)) -> 100.7142857 | P39: =IFERROR(_xlfn.STDEV.S(L$26:L39)/J39^0.5,"") -> 3.853681801 | Q39: 6.824613799 | R39: 107.5388995 | S39: 93.88967192 | U39: 14 | W39: 7.280110074e-09 | X39: 0.0002423070703 | Y39: 0.15 | Z39: 0.1338948772 | AA39: 8.629705967e-05 | AB39: 0.0009720240962 | AC39: 0.0834732652 | AD39: 0.006813569449 | AE39: 2.525615339e-16 | AF39: 0.01203464775
A40: 7.280110074e-09 | C40: 15 | D40: 1.556944252e-07 | F40: 6.029169125e-26 | I40: 0 | J40: 15 | K40: 0.2449284428 | L40: 89 | M40: 89 | O40: =IF(K40="","",AVERAGE(L$26:L40)) -> 99.93333333 | P40: =IFERROR(_xlfn.STDEV.S(L$26:L40)/J40^0.5,"") -> 3.671598415 | Q40: 6.466823503 | R40: 106.4001568 | S40: 93.46650983 | U40: 15 | W40: 1.071759026e-08 | X40: 0.0003499324604 | Y40: 0.16 | Z40: 0.1532205287 | AA40: 0.0001041624513 | AB40: 0.0009724458902 | AC40: 0.09371324252 | AD40: 0.007768540553 | AE40: 2.859857237e-16 | AF40: 0.01331667856
A41: 1.071759026e-08 | C41: 16 | D41: 1.886061724e-07 | F41: 8.530351589e-26 | I41: 0 | J41: 16 | K41: 0.6376211686 | L41: 105 | M41: 105 | O41: =IF(K41="","",AVERAGE(L$26:L41)) -> 100.25 | P41: =IFERROR(_xlfn.STDEV.S(L$26:L41)/J41^0.5,"") -> 3.449033681 | Q41: 6.046329721 | R41: 106.2963297 | S41: 94.20367028 | U41: 16 | W41: 1.571007685e-08 | X41: 0.0004935384596 | Y41: 0.17 | Z41: 0.1729807147 | AA41: 0.0001258429178 | AB41: 0.0009739221689 | AC41: 0.10484295 | AD41: 0.008838891121 | AE41: 3.214989253e-16 | AF41: 0.01459344955
A42: 1.571007685e-08 | C42: 17 | D42: 2.285104218e-07 | F42: 1.211531567e-25 | I42: 0 | J42: 17 | K42: 0.8228339154 | L42: 113 | M42: 113 | O42: =IF(K42="","",AVERAGE(L$26:L42)) -> 101 | P42: =IFERROR(_xlfn.STDEV.S(L$26:L42)/J42^0.5,"") -> 3.325480947 | Q42: 5.805902901 | R42: 106.8059029 | S42: 95.1940971 | U42: 17 | W42: 2.292886212e-08 | X42: 0.0006816185738 | Y42: 0.18 | Z42: 0.1930328332 | AA42: 0.000152117988 | AB42: 0.0009798272838 | AC42: 0.1169333011 | AD42: 0.01000401768 | AE42: 3.591011388e-16 | AF42: 0.0158694413
A43: 2.292886212e-08 | C43: 18 | D43: 2.768936015e-07 | F43: 1.727414746e-25 | I43: 0 | J43: 18 | K43: 0.6426771159 | L43: 105 | M43: 105 | O43: =IF(K43="","",AVERAGE(L$26:L43)) -> 101.2222222 | P43: =IFERROR(_xlfn.STDEV.S(L$26:L43)/J43^0.5,"") -> 3.143158933 | Q43: 5.46786042 | R43: 106.6900826 | S43: 95.7543618 | U43: 18 | W43: 3.332044849e-08 | X43: 0.0009238917157 | Y43: 0.19 | Z43: 0.2132515835 | AA43: 0.0001838895612 | AB43: 0.0009960663499 | AC43: 0.1300335368 | AD43: 0.01124949779 | AE43: 3.987923642e-16 | AF43: 0.01713549786
A44: 3.332044849e-08 | C44: 19 | D44: 3.355565584e-07 | F44: 2.472802715e-25 | I44: 0 | J44: 19 | K44: 0.10391103 | L44: 81 | M44: 81 | O44: =IF(K44="","",AVERAGE(L$26:L44)) -> 100.1578947 | P44: =IFERROR(_xlfn.STDEV.S(L$26:L44)/J44^0.5,"") -> 3.157894737 | Q44: 5.475990337 | R44: 105.6338851 | S44: 94.6819044 | U44: 19 | W44: 4.821303365e-08 | X44: 0.00123136 | Y44: 0.2 | Z44: 0.2335279253 | AA44: 0.0002222019585 | AB44: 0.001030231658 | AC44: 0.1441687927 | AD44: 0.01248982703 | AE44: 4.405726014e-16 | AF44: 0.01838499574
A45: 4.821303365e-08 | C45: 20 | D45: 4.066802839e-07 | F45: 3.554277366e-25 | I45: 0 | J45: 20 | K45: 0.1462783277 | L45: 84 | M45: 84 | O45: =IF(K45="","",AVERAGE(L$26:L45)) -> 99.35 | P45: =IFERROR(_xlfn.STDEV.S(L$26:L45)/J45^0.5,"") -> 3.102863703 | Q45: 5.365263438 | R45: 104.7152634 | S45: 93.98473656 | U45: 20 | W45: 6.946156146e-08 | X45: 0.001616356893 | Y45: 0.21 | Z45: 0.2537678077 | AA45: 0.0002682677804 | AB45: 0.001087595631 | AC45: 0.1593403824 | AD45: 0.01371161315 | AE45: 4.844418504e-16 | AF45: 0.01960897379
A46: 6.946156146e-08 | C46: 21 | D46: 4.929050944e-07 | F46: 5.130047953e-25 | I46: 0 | J46: 21 | K46: 0.5769294467 | L46: 102 | M46: 102 | O46: =IF(K46="","",AVERAGE(L$26:L46)) -> 99.47619048 | P46: =IFERROR(_xlfn.STDEV.S(L$26:L46)/J46^0.5,"") -> 2.954108558 | Q46: 5.095004921 | R46: 104.5711954 | S46: 94.38118556 | U46: 21 | W46: 9.964426317e-08 | X46: 0.00209258486 | Y46: 0.22 | Z46: 0.273890801 | AA46: 0.0003234670814 | AB46: 0.001167314683 | AC46: 0.1755285646 | AD46: 0.01488292075 | AE46: 5.304001114e-16 | AF46: 0.02080587354
A47: 9.964426317e-08 | C47: 22 | D47: 5.974259297e-07 | F47: 7.436016146e-25 | I47: 0 | J47: 22 | K47: 0.9876049358 | L47: 133 | M47: 133 | O47: =IF(K47="","",AVERAGE(L$26:L47)) -> 101 | P47: =IFERROR(_xlfn.STDEV.S(L$26:L47)/J47^0.5,"") -> 3.202407103 | Q47: 5.510519295 | R47: 106.5105193 | S47: 95.48948071 | U47: 22 | W47: 1.423275535e-07 | X47: 0.002675141747 | Y47: 0.23 | Z47: 0.29382872 | AA47: 0.0003893921214 | AB47: 0.001261374728 | AC47: 0.1926975141 | AD47: 0.01605010765 | AE47: 5.784473842e-16 | AF47: 0.02197140921
A48: 1.423275535e-07 | C48: 23 | D48: 7.241069299e-07 | F48: 1.082554732e-24 | I48: 0 | J48: 23 | K48: 0.864953485 | L48: 116 | M48: 116 | O48: =IF(K48="","",AVERAGE(L$26:L48)) -> 101.6521739 | P48: =IFERROR(_xlfn.STDEV.S(L$26:L48)/J48^0.5,"") -> 3.128732519 | Q48: 5.372485444 | R48: 107.0246594 | S48: 96.27968847 | U48: 23 | W48: 2.02421148e-07 | X48: 0.003380535204 | Y48: 0.24 | Z48: 0.3135242913 | AA48: 0.0004678213809 | AB48: 0.001359441815 | AC48: 0.2108018897 | AD48: 0.01719669108 | AE48: 6.285836688e-16 | AF48: 0.02310285351
A49: 2.02421148e-07 | C49: 24 | D49: 8.776190369e-07 | F49: 1.583045016e-24 | I49: 0 | J49: 24 | K49: 0.67856357 | L49: 106 | M49: 106 | O49: =IF(K49="","",AVERAGE(L$26:L49)) -> 101.8333333 | P49: =IFERROR(_xlfn.STDEV.S(L$26:L49)/J49^0.5,"") -> 3.001006272 | Q49: 5.143339205 | R49: 106.9766725 | S49: 96.68999413 | U49: 24 | W49: 2.866515719e-07 | X49: 0.00422668457 | Y49: 0.25 | Z49: 0.3329298993 | AA49: 0.0005607874091 | AB49: 0.001455399932 | AC49: 0.2297934692 | AD49: 0.01850398162 | AE49: 6.808089653e-16 | AF49: 0.02421540143
A50: 2.866515719e-07 | C50: 25 | D50: 1.063605052e-06 | F50: 2.325493798e-24 | I50: 0 | J50: 25 | K50: 0.9708145555 | L50: 128 | M50: 128 | O50: =IF(K50="","",AVERAGE(L$26:L50)) -> 102.88 | P50: =IFERROR(_xlfn.STDEV.S(L$26:L50)/J50^0.5,"") -> 3.062852701 | Q50: 5.240179799 | R50: 108.1201798 | S50: 97.6398202 | U50: 25 | W50: 4.041901152e-07 | X50: 0.005232909679 | Y50: 0.26 | Z50: 0.3520064258 | AA50: 0.0006705811546 | AB50: 0.001551147153 | AC50: 0.249626906 | AD50: 0.01996991893 | AE50: 7.351232737e-16 | AF50: 0.02535054708
A51: 4.041901152e-07 | C51: 26 | D51: 1.288877367e-06 | F51: 3.432114545e-24 | I51: 0 | J51: 26 | K51: 0.777349129 | L51: 111 | M51: 111 | O51: =IF(K51="","",AVERAGE(L$26:L51)) -> 103.1923077 | P51: =IFERROR(_xlfn.STDEV.S(L$26:L51)/J51^0.5,"") -> 2.959219872 | Q51: 5.054764084 | R51: 108.2470718 | S51: 98.13754361 | U51: 26 | W51: 5.674810724e-07 | X51: 0.006419906181 | Y51: 0.27 | Z51: 0.3707221923 | AA51: 0.0007997909416 | AB51: 0.001653432179 | AC51: 0.2702637938 | AD51: 0.02207971485 | AE51: 7.915265939e-16 | AF51: 0.02655309626
A52: 5.674810724e-07 | C52: 27 | D52: 1.561654519e-06 | F52: 5.089565788e-24 | I52: 0 | J52: 27 | K52: 0.7366491965 | L52: 109 | M52: 109 | O52: =IF(K52="","",AVERAGE(L$26:L52)) -> 103.4074074 | P52: =IFERROR(_xlfn.STDEV.S(L$26:L52)/J52^0.5,"") -> 2.855623362 | Q52: 4.870602378 | R52: 108.2780098 | S52: 98.53680503 | U52: 27 | W52: 7.93328152e-07 | X52: 0.007809707023 | Y52: 0.28 | Z52: 0.3890520055 | AA52: 0.0009512793733 | AB52: 0.001767105642 | AC52: 0.2916745425 | AD52: 0.02516096465 | AE52: 8.50018926e-16 | AF52: 0.02787915365
A53: 7.93328152e-07 | C53: 28 | D53: 1.891843764e-06 | F53: 7.584402747e-24 | I53: 0 | J53: 28 | K53: 0.5851370428 | L53: 103 | M53: 103 | O53: =IF(K53="","",AVERAGE(L$26:L53)) -> 103.3928571 | P53: =IFERROR(_xlfn.STDEV.S(L$26:L53)/J53^0.5,"") -> 2.751785993 | Q53: 4.687085287 | R53: 108.0799424 | S53: 98.70577186 | U53: 28 | W53: 1.104311644e-06 | X53: 0.009425629827 | Y53: 0.29 | Z53: 0.4069763011 | AA53: 0.001128284381 | AB53: 0.001890691261 | AC53: 0.3138380179 | AD53: 0.03020881623 | AE53: 9.1060027e-16 | AF53: 0.02938131738
A54: 1.104311644e-06 | C54: 29 | D54: 2.291378093e-06 | F54: 1.135886015e-23 | I54: 0 | J54: 29 | K54: 0.7440461795 | L54: 109 | M54: 109 | O54: =IF(K54="","",AVERAGE(L$26:L54)) -> 103.5862069 | P54: =IFERROR(_xlfn.STDEV.S(L$26:L54)/J54^0.5,"") -> 2.662232313 | Q54: 4.528805742 | R54: 108.1150126 | S54: 99.05740115 | U54: 29 | W54: 1.530626737e-06 | X54: 0.01129221 | Y54: 0.3 | Z54: 0.4244803826 | AA54: 0.001334387467 | AB54: 0.002017651232 | AC54: 0.3367386003 | AD54: 0.03814630528 | AE54: 9.732706258e-16 | AF54: 0.03112757541
A55: 1.530626737e-06 | C55: 30 | D55: 2.7746175e-06 | F55: 1.709911401e-23 | I55: 0 | J55: 30 | K55: 0.065205566 | L55: 77 | M55: 77 | O55: =IF(K55="","",AVERAGE(L$26:L55)) -> 102.7 | P55: =IFERROR(_xlfn.STDEV.S(L$26:L55)/J55^0.5,"") -> 2.720357482 | Q55: 4.622232919 | R55: 107.3222329 | S55: 98.07776708 | U55: 30 | W55: 2.112454703e-06 | X55: 0.01343511947 | Y55: 0.31 | Z55: 0.4415537469 | AA55: 0.001573620528 | AB55: 0.002140815058 | AC55: 0.3603607735 | AD55: 0.05115740025 | AE55: 1.038029993e-15 | AF55: 0.03319292878
A56: 2.112454703e-06 | C56: 31 | D56: 3.358825891e-06 | F56: 2.587572765e-23 | I56: 0 | J56: 31 | K56: 0.3718987397 | L56: 95 | M56: 95 | O56: =IF(K56="","",AVERAGE(L$26:L56)) -> 102.4516129 | P56: =IFERROR(_xlfn.STDEV.S(L$26:L56)/J56^0.5,"") -> 2.642839264 | Q56: 4.485587712 | R56: 106.9372006 | S56: 97.96602519 | U56: 31 | W56: 2.903004061e-06 | X56: 0.01588107107 | Y56: 0.32 | Z56: 0.4581894888 | AA56: 0.001850434095 | AB56: 0.002255753902 | AC56: 0.3846823355 | AD56: 0.06969434744 | AE56: 1.104878373e-15 | AF56: 0.03566309298
A57: 2.903004061e-06 | C57: 32 | D57: 4.06473679e-06 | F57: 3.936843765e-23 | O57: =IF(K57="","",AVERAGE(L$26:L57)) ->  | P57: =IFERROR(_xlfn.STDEV.S(L$26:L57)/J57^0.5,"") ->  | U57: 32 | W57: 3.972388603e-06 | X57: 0.0186577086 | Y57: 0.33 | Z57: 0.4743837778 | AA57: 0.002169828701 | AB57: 0.002360780589 | AC57: 0.4096668737 | AD57: 0.09456274273 | AE57: 1.173815764e-15 | AF57: 0.03860430268
A58: 3.972388603e-06 | C58: =C57+OFFSET(W$23,,B$11-1) -> 33 | D58: 4.917223013e-06 | F58: 6.022807367e-23 | I58: =IF(L58<>"",0,"") ->  | J58: =IF(B$9>J57,J57+1,"") ->  | K58: =IFERROR(( MOD(( MOD( MOD( 999999999999989, MOD( PM_Index*2499997 +$J58*1800451, 7450589 ) * 4658 + 7450581 ) * 383, 99991 ) * 7440893 + MOD( MOD( 999999999999989, MOD( PM_Index*2246527 +$J58*2399993, 7450987 ) * 7580 + 7560584 ) * 17669, 7440893 )) * 1343, 4294967296 ) + 0.5 ) / 4294967296,"") ->  | M58: =IF(L58="",NA(),L58) ->  | O58: =IF(K58="","",AVERAGE(L$26:L58)) ->  | P58: =IFERROR(_xlfn.STDEV.S(L$26:L58)/J58^0.5,"") ->  | U58: 33 | W58: 5.412543908e-06 | X58: 0.02179348278 | Y58: 0.34 | Z58: 0.4901353993 | AA58: 0.002537324565 | AB58: 0.0024571605 | AC58: 0.4352566773 | AD58: 0.1247993737 | AE58: 0.003973684189 | AF58: 0.0420808445
A59: 5.412543908e-06 | C59: 34 | D59: 5.946087644e-06 | F59: 9.266283424e-23 | O59: =IF(K59="","",AVERAGE(L$26:L59)) ->  | P59: =IFERROR(_xlfn.STDEV.S(L$26:L59)/J59^0.5,"") ->  | U59: 34 | W59: 7.343423837e-06 | X59: 0.02531751332 | Y59: 0.35 | Z59: 0.5054453532 | AA59: 0.002959058312 | AB59: 0.002548478885 | AC59: 0.4613670868 | AD59: 0.1598469162 | AE59: 0.009558180278 | AF59: 0.04614336849
A60: 7.343423837e-06 | C60: 35 | D60: 7.186996131e-06 | F60: 1.433939442e-22 | O60: =IF(K60="","",AVERAGE(L$26:L60)) ->  | P60: =IFERROR(_xlfn.STDEV.S(L$26:L60)/J60^0.5,"") ->  | U60: 35 | W60: 9.920763886e-06 | X60: 0.02925943745 | Y60: 0.36 | Z60: 0.5203165038 | AA60: 0.003441759872 | AB60: 0.002641273548 | AC60: 0.4878827329 | AD60: 0.1981632001 | AE60: 0.01688999939 | AF60: 0.05084291431
A61: 9.920763886e-06 | C61: 36 | D61: 8.682571888e-06 | F61: 2.232234179e-22 | O61: =IF(K61="","",AVERAGE(L$26:L61)) ->  | P61: =IFERROR(_xlfn.STDEV.S(L$26:L61)/J61^0.5,"") ->  | U61: 36 | W61: 1.334574902e-05 | X61: 0.03364924528 | Y61: 0.37 | Z61: 0.534753275 | AA61: 0.00399289107 | AB61: 0.002741660501 | AC61: 0.5146565883 | AD61: 0.2387365949 | AE61: 0.02549327075 | AF61: 0.056204807
A62: 1.334574902e-05 | C62: 37 | D62: 1.048368067e-05 | F62: 3.49622902e-22 | O62: =IF(K62="","",AVERAGE(L$26:L62)) ->  | P62: =IFERROR(_xlfn.STDEV.S(L$26:L62)/J62^0.5,"") ->  | U62: 37 | W62: 1.78769797e-05 | X62: 0.0385171026 | Y62: 0.38 | Z62: 0.548761385 | AA62: 0.004620554674 | AB62: 0.002852592303 | AC62: 0.5415122875 | AD62: 0.2786651008 | AE62: 0.03517110982 | AF62: 0.06223820253
A63: 1.78769797e-05 | C63: 38 | D63: 1.26509319e-05 | F63: 5.510374514e-22 | O63: =IF(K63="","",AVERAGE(L$26:L63)) ->  | P63: =IFERROR(_xlfn.STDEV.S(L$26:L63)/J63^0.5,"") ->  | U63: 38 | W63: 2.384519071e-05 | X63: 0.04389316155 | Y63: 0.39 | Z63: 0.5623476164 | AA63: 0.005333706604 | AB63: 0.002971116396 | AC63: 0.5682495392 | AD63: 0.3171410617 | AE63: 0.04568980034 | AF63: 0.06885816465
A64: 2.384519071e-05 | C64: 39 | D64: 1.525642832e-05 | F64: 8.740897385e-22 | O64: =IF(K64="","",AVERAGE(L$26:L64)) ->  | P64: =IFERROR(_xlfn.STDEV.S(L$26:L64)/J64^0.5,"") ->  | U64: 39 | W64: 3.167124183e-05 | X64: 0.04980736 | Y64: 0.4 | Z64: 0.5755196174 | AA64: 0.006141998581 | AB64: 0.003091116767 | AC64: 0.5946525661 | AD64: 0.3529499026 | AE64: 0.05679288226 | AF64: 0.07597975712
A65: 3.167124183e-05 | C65: 40 | D65: 1.838579814e-05 | F65: 1.395724916e-21 | O65: =IF(K65="","",AVERAGE(L$26:L65)) ->  | P65: =IFERROR(_xlfn.STDEV.S(L$26:L65)/J65^0.5,"") ->  | U65: 40 | W65: 4.188796689e-05 | X65: 0.05628921027 | Y65: 0.41 | Z65: 0.5882857294 | AA65: 0.007055945584 | AB65: 0.003209219065 | AC65: 0.620500541 | AD65: 0.3862337876 | AE65: 0.06834340924 | AF65: 0.08349875771
A66: 4.188796689e-05 | C66: 41 | D66: 2.214054736e-05 | F66: 2.243833419e-21 | O66: =IF(K66="","",AVERAGE(L$26:L66)) ->  | P66: =IFERROR(_xlfn.STDEV.S(L$26:L66)/J66^0.5,"") ->  | U66: 41 | W66: 5.516653503e-05 | X66: 0.06336757807 | Y66: 0.42 | Z66: 0.6006548389 | AA66: 0.008086816133 | AB66: 0.003330484818 | AC66: 0.6455788637 | AD66: 0.4172100833 | AE66: 0.08023391646 | AF66: 0.09133938614
A67: 5.516653503e-05 | C67: 42 | D67: 2.664077209e-05 | F67: 3.632531405e-21 | O67: =IF(K67="","",AVERAGE(L$26:L67)) ->  | P67: =IFERROR(_xlfn.STDEV.S(L$26:L67)/J67^0.5,"") ->  | U67: 42 | W67: 7.234804393e-05 | X67: 0.07107045262 | Y67: 0.43 | Z67: 0.6126362495 | AA67: 0.009246877703 | AB67: 0.003469465916 | AC67: 0.6696904305 | AD67: 0.4460085916 | AE67: 0.09238962824 | AF67: 0.09941261521
A68: 7.234804393e-05 | C68: 43 | D68: 3.202827354e-05 | F68: 5.922979342e-21 | O68: =IF(K68="","",AVERAGE(L$26:L68)) ->  | P68: =IFERROR(_xlfn.STDEV.S(L$26:L68)/J68^0.5,"") ->  | U68: 43 | W68: 9.44811248e-05 | X68: 0.07942470894 | Y68: 0.44 | Z68: 0.6242395726 | AA68: 0.01054912388 | AB68: 0.003643455909 | AC68: 0.6926657035 | AD68: 0.47261386 | AE68: 0.1047481805 | AF68: 0.1076327294
A69: 9.44811248e-05 | C69: 44 | D69: 3.847011969e-05 | F69: 9.729049898e-21 | O69: =IF(K69="","",AVERAGE(L$26:L69)) ->  | P69: =IFERROR(_xlfn.STDEV.S(L$26:L69)/J69^0.5,"") ->  | U69: 44 | W69: 0.00012286639 | X69: 0.08845586332 | Y69: 0.45 | Z69: 0.6354746333 | AA69: 0.01200752412 | AB69: 0.003865741307 | AC69: 0.7143707138 | AD69: 0.4975172812 | AE69: 0.1172544304 | AF69: 0.1159216109
A70: 0.00012286639 | C70: 45 | D70: 4.616269871e-05 | F70: 1.610240182e-20 | O70: =IF(K70="","",AVERAGE(L$26:L70)) ->  | P70: =IFERROR(_xlfn.STDEV.S(L$26:L70)/J70^0.5,"") ->  | U70: 45 | W70: 0.0001591085902 | X70: 0.09818782331 | Y70: 0.46 | Z70: 0.6463513906 | AA70: 0.01363671479 | AB70: 0.004143070812 | AC70: 0.7347123322 | AD70: 0.520853808 | AE70: 0.1298552661 | AF70: 0.1242987403
A71: 0.0001591085902 | C71: 46 | D71: 5.533630813e-05 | F71: 2.685932145e-20 | O71: =IF(K71="","",AVERAGE(L$26:L71)) ->  | P71: =IFERROR(_xlfn.STDEV.S(L$26:L71)/J71^0.5,"") ->  | U71: 46 | W71: 0.0002051773657 | X71: 0.1086426334 | Y71: 0.47 | Z71: 0.656879869 | AA71: 0.01545234709 | AB71: 0.004481349538 | AC71: 0.7536400803 | AD71: 0.5428480185 | AE71: 0.1425054741 | AF71: 0.1327861309
A72: 0.0002051773657 | C72: 47 | D72: 6.626032214e-05 | F72: 4.516284854e-20 | O72: =IF(K72="","",AVERAGE(L$26:L72)) ->  | P72: =IFERROR(_xlfn.STDEV.S(L$26:L72)/J72^0.5,"") ->  | U72: 47 | W72: 0.0002634774656 | X72: 0.1198402176 | Y72: 0.48 | Z72: 0.6670701007 | AA72: 0.01747076516 | AB72: 0.004889013365 | AC72: 0.7711446365 | AD72: 0.5639985165 | AE72: 0.1551736063 | AF72: 0.1414270302
A73: 0.0002634774656 | C73: 48 | D73: 7.924897419e-05 | F73: 7.65686649e-20 | O73: =IF(K73="","",AVERAGE(L$26:L73)) ->  | P73: =IFERROR(_xlfn.STDEV.S(L$26:L73)/J73^0.5,"") ->  | U73: 48 | W73: 0.0003369292657 | X73: 0.1317981209 | Y73: 0.49 | Z73: 0.6769320773 | AA73: 0.01970923698 | AB73: 0.005370912922 | AC73: 0.7872535642 | AD73: 0.5842434919 | AE73: 0.1678424961 | AF73: 0.1501857883
A74: 0.0003369292657 | C74: 49 | D74: 9.46677855e-05 | F74: 1.309211351e-19 | O74: =IF(K74="","",AVERAGE(L$26:L74)) ->  | P74: =IFERROR(_xlfn.STDEV.S(L$26:L74)/J74^0.5,"") ->  | U74: 49 | W74: 0.0004290603332 | X74: 0.14453125 | Y74: 0.5 | Z74: 0.6864757087 | AA74: 0.02218554305 | AB74: 0.005918401435 | AC74: 0.8020249921 | AD74: 0.6040578546 | AE74: 0.180509774 | AF74: 0.1590380542
A75: 0.0004290603332 | C75: 50 | D75: 0.0001129406589 | F75: 2.258223674e-19 | O75: =IF(K75="","",AVERAGE(L$26:L75)) ->  | P75: =IFERROR(_xlfn.STDEV.S(L$26:L75)/J75^0.5,"") ->  | U75: 50 | W75: 0.0005441086525 | X75: 0.1580516167 | Y75: 0.51 | Z75: 0.6957107891 | AA75: 0.0249181885 | AB75: 0.006506382164 | AC75: 0.8155400099 | AD75: 0.6237825921 | AE75: 0.1931855788 | AF75: 0.1679678536
A76: 0.0005441086525 | C76: 51 | D76: 0.0001345576432 | F76: 3.930397405e-19 | O76: =IF(K76="","",AVERAGE(L$26:L76)) ->  | P76: =IFERROR(_xlfn.STDEV.S(L$26:L76)/J76^0.5,"") ->  | U76: 51 | W76: 0.0006871379379 | X76: 0.1723680833 | Y76: 0.52 | Z76: 0.7046469691 | AA76: 0.02792600474 | AB76: 0.007110180165 | AC76: 0.8278944398 | AD76: 0.6436051962 | AE76: 0.2058902688 | AF76: 0.1769773294
A77: 0.0006871379379 | C77: 52 | D77: 0.0001600833537 | F77: 6.904567637e-19 | O77: =IF(K77="","",AVERAGE(L$26:L77)) ->  | P77: =IFERROR(_xlfn.STDEV.S(L$26:L77)/J77^0.5,"") ->  | U77: 52 | W77: 0.0008641652091 | X77: 0.1874861144 | Y77: 0.53 | Z77: 0.7132937325 | AA77: 0.03122851029 | AB77: 0.007720937766 | AC77: 0.8391906452 | AD77: 0.6636441368 | AE77: 0.2186469744 | AF77: 0.1860431048
A78: 0.0008641652091 | C78: 53 | D78: 0.0001901660094 | F78: 1.22458736e-18 | O78: =IF(K78="","",AVERAGE(L$26:L78)) ->  | P78: =IFERROR(_xlfn.STDEV.S(L$26:L78)/J78^0.5,"") ->  | U78: 53 | W78: 0.001082300481 | X78: 0.2034075343 | Y78: 0.54 | Z78: 0.721660378 | AA78: 0.03484532331 | AB78: 0.008352785063 | AC78: 0.8495304567 | AD78: 0.6839395906 | AE78: 0.231474152 | AF78: 0.1951334259
A79: 0.001082300481 | C79: 54 | D79: 0.0002255470174 | F79: 2.193429849e-18 | O79: =IF(K79="","",AVERAGE(L$26:L79)) ->  | P79: =IFERROR(_xlfn.STDEV.S(L$26:L79)/J79^0.5,"") ->  | U79: 54 | W79: 0.001349898032 | X79: 0.2201302946 | Y79: 0.55 | Z79: 0.7297560042 | AA79: 0.03879655706 | AB79: 0.009025968165 | AC79: 0.8590098387 | AD79: 0.7042494669 | AE79: 0.2443846724 | AF79: 0.2042134222
A80: 0.001349898032 | C80: 55 | D80: 0.0002670709962 | F80: 3.968904733e-18 | O80: =IF(K80="","",AVERAGE(L$26:L80)) ->  | P80: =IFERROR(_xlfn.STDEV.S(L$26:L80)/J80^0.5,"") ->  | U80: 55 | W80: 0.001676718227 | X80: 0.2376482513 | Y80: 0.56 | Z80: 0.7375894982 | AA80: 0.04310220792 | AB80: 0.009756093446 | AC80: 0.8677155235 | AD80: 0.7247643477 | AE80: 0.2573849108 | AF80: 0.2133193279
A81: 0.001676718227 | C81: 56 | D81: 0.0003156960847 | F81: 7.257177598e-18 | O81: =IF(K81="","",AVERAGE(L$26:L81)) ->  | P81: =IFERROR(_xlfn.STDEV.S(L$26:L81)/J81^0.5,"") ->  | U81: 56 | W81: 0.002074098364 | X81: 0.2559509562 | Y81: 0.57 | Z81: 0.7451695271 | AA81: 0.0477825292 | AB81: 0.01054632436 | AC81: 0.8757232535 | AD81: 0.7450464093 | AE81: 0.270475399 | AF81: 0.2224809488
A82: 0.002074098364 | C82: 57 | D82: 0.0003725043327 | F82: 1.341396709e-17 | O82: =IF(K82="","",AVERAGE(L$26:L82)) ->  | P82: =IFERROR(_xlfn.STDEV.S(L$26:L82)/J82^0.5,"") ->  | U82: 57 | W82: 0.00255513033 | X82: 0.2750234624 | Y82: 0.58 | Z82: 0.7525045314 | AA82: 0.05285716791 | AB82: 0.01139518463 | AC82: 0.8830974553 | AD82: 0.7644857888 | AE82: 0.2836514786 | AF82: 0.2317160122
A83: 0.00255513033 | C83: 58 | D83: 0.0004387119073 | F83: 2.507185831e-17 | O83: =IF(K83="","",AVERAGE(L$26:L83)) ->  | P83: =IFERROR(_xlfn.STDEV.S(L$26:L83)/J83^0.5,"") ->  | U83: 58 | W83: 0.003134842261 | X83: 0.2948461482 | Y83: 0.59 | Z83: 0.7596027215 | AA83: 0.05834573208 | AB83: 0.01229655825 | AC83: 0.889892199 | AD83: 0.7831968353 | AE83: 0.2969063636 | AF83: 0.2409584783
A84: 0.003134842261 | C84: 59 | D84: 0.0005156787832 | F84: 4.74032591e-17 | O84: =IF(K84="","",AVERAGE(L$26:L84)) ->  | P84: =IFERROR(_xlfn.STDEV.S(L$26:L84)/J84^0.5,"") ->  | U84: 59 | W84: 0.003830380568 | X84: 0.31539456 | Y84: 0.6 | Z84: 0.7664720747 | AA84: 0.06426698671 | AB84: 0.01324960162 | AC84: 0.8961533033 | AD84: 0.800841652 | AE84: 0.3102342029 | AF84: 0.2501263329
A85: 0.003830380568 | C85: 60 | D85: 0.0006049175117 | F85: 9.069431361e-17 | O85: =IF(K85="","",AVERAGE(L$26:L85)) ->  | P85: =IFERROR(_xlfn.STDEV.S(L$26:L85)/J85^0.5,"") ->  | U85: 60 | W85: 0.004661188024 | X85: 0.3366392781 | Y85: 0.61 | Z85: 0.7731203343 | AA85: 0.07063941096 | AB85: 0.01426886663 | AC85: 0.9019208135 | AD85: 0.8175345881 | AE85: 0.3236297094 | AF85: 0.2591422374
A86: 0.004661188024 | C86: 61 | D86: 0.0007081005866 | F86: 1.756568363e-16 | O86: =IF(K86="","",AVERAGE(L$26:L86)) ->  | P86: =IFERROR(_xlfn.STDEV.S(L$26:L86)/J86^0.5,"") ->  | U86: 61 | W86: 0.005649172756 | X86: 0.3585458071 | Y86: 0.62 | Z86: 0.7795550107 | AA86: 0.07747992205 | AB86: 0.0153952673 | AC86: 0.9072311886 | AD86: 0.8332292858 | AE86: 0.3370877895 | AF86: 0.2679311907
A87: 0.005649172756 | C87: 62 | D87: 0.000827065844 | F87: 3.4453332e-16 | O87: =IF(K87="","",AVERAGE(L$26:L87)) ->  | P87: =IFERROR(_xlfn.STDEV.S(L$26:L87)/J87^0.5,"") ->  | U87: 62 | W87: 0.00681886227 | X87: 0.3810744936 | Y87: 0.63 | Z87: 0.7857833818 | AA87: 0.08480453786 | AB87: 0.01667773173 | AC87: 0.9121187628 | AD87: 0.8476609904 | AE87: 0.3506042926 | AF87: 0.276407867
A88: 0.00681886227 | C88: 63 | D88: 0.0009638192533 | F88: 6.846230265e-16 | O88: =IF(K88="","",AVERAGE(L$26:L88)) ->  | P88: =IFERROR(_xlfn.STDEV.S(L$26:L88)/J88^0.5,"") ->  | U88: 63 | W88: 0.008197535925 | X88: 0.4041804744 | Y88: 0.64 | Z88: 0.7918124962 | AA88: 0.0926274227 | AB88: 0.01813777139 | AC88: 0.9166167095 | AD88: 0.8611830516 | AE88: 0.3641767606 | AF88: 0.2844933689
A89: =OFFSET(W88,,B$11-1) -> 0.008197535925 | C89: 64 | D89: =_xlfn.T.DIST((C89+B$22/2-B$17)/B$18,B$9-1,1)-_xlfn.T.DIST((C89-B$22/2-B$17)/B$18,B$9-1,1) -> 0.001120534385 | F89: =_xlfn.T.DIST((C89+B$22/2-B$17)/B$19,B$9-1,1)-_xlfn.T.DIST((C89-B$22/2-B$17)/B$19,B$9-1,1) -> 1.378806793e-15 | O89: =IF(K89="","",AVERAGE(L$26:L89)) ->  | P89: =IFERROR(_xlfn.STDEV.S(L$26:L89)/J89^0.5,"") ->  | U89: 64 | W89: =NORMDIST(C90,100,15,1) -> 0.009815328629 | X89: =IFERROR(BETADIST(C90,6,3,0,100),"") -> 0.4278136571 | Y89: =C90/100 -> 0.65 | Z89: 0.7976491759 | AA89: 0.1009615846 | AB89: 0.01974311906 | AC89: 0.9207575629 | AD89: 0.8742508061 | AE89: 0.3778019698 | AF89: 0.2921313972
A90: 0.009815328629 | C90: =C89+OFFSET(W$23,,B$11-1) -> 65 | D90: 0.001299547775 | F90: 2.815585464e-15 | I90: =IF(L90<>"",0,"") ->  | J90: =IF(B$9>J89,J89+1,"") ->  | K90: =IFERROR(( MOD(( MOD( MOD( 999999999999989, MOD( PM_Index*2499997 +$J90*1800451, 7450589 ) * 4658 + 7450581 ) * 383, 99991 ) * 7440893 + MOD( MOD( 999999999999989, MOD( PM_Index*2246527 +$J90*2399993, 7450987 ) * 7580 + 7560584 ) * 17669, 7440893 )) * 1343, 4294967296 ) + 0.5 ) / 4294967296,"") ->  | M90: =IF(L90="",NA(),L90) ->  | O90: =IF(K90="","",AVERAGE(L$26:L90)) ->  | P90: =IFERROR(_xlfn.STDEV.S(L$26:L90)/J90^0.5,"") ->  | U90: 65 | W90: 0.01170529808 | X90: 0.4519187371 | Y90: 0.66 | Z90: =_xlfn.LOGNORM.DIST(C91,(LN(120)+LN(10))/2,(LN(120)-LN(10))/3.29,1) -> 0.8033000198 | AA90: 0.1098179586 | AB90: 0.02142544413 | AC90: 0.924573281 | AD90: 0.8862389385 | AE90: 0.3914734724 | AF90: 0.2993679263
A91: 0.01170529808 | B91: =IF(B$12,A91-A90,"") ->  | C91: 66 | D91: 0.001503349347 | F91: 5.832205254e-15 | L91: =IFERROR(VLOOKUP(K91,A$25:C$225,3),"") ->  | O91: =IF(K91="","",AVERAGE(L$26:L91)) ->  | P91: =IFERROR(_xlfn.STDEV.S(L$26:L91)/J91^0.5,"") ->  | T91: =IF($B$12,OFFSET(W$19,,B$11-1),"") ->  | U91: 66 | W91: 0.01390344751 | X91: 0.476435253 | Y91: 0.67 | Z91: 0.8087714085 | AA91: 0.119206019 | AB91: 0.02312864799 | AC91: 0.9280947239 | AD91: 0.8971968971 | AE91: 0.4051811459 | AF91: 0.3062734768
A92: 0.01390344751 | C92: 67 | D92: 0.001734567049 | F92: 1.225981635e-14 | O92: =IF(K92="","",AVERAGE(L$26:L92)) ->  | P92: =IFERROR(_xlfn.STDEV.S(L$26:L92)/J92^0.5,"") ->  | Q92: =IFERROR(TINV(0.1,J92-1)*P92,"") ->  | R92: =IFERROR(O92+Q92,"") ->  | S92: =IFERROR(O92-Q92,"") ->  | U92: 67 | W92: 0.01644869582 | X92: 0.5012976839 | Y92: 0.68 | Z92: 0.8140695082 | AA92: 0.1291325648 | AB92: 0.02485526142 | AC92: 0.9313509545 | AD92: 0.907332777 | AE92: 0.4189107412 | AF92: 0.3129331797
A93: 0.01644869582 | C93: 68 | D93: 0.001995944834 | F93: 2.616449802e-14 | O93: =IF(K93="","",AVERAGE(L$26:L93)) ->  | P93: =IFERROR(_xlfn.STDEV.S(L$26:L93)/J93^0.5,"") ->  | U93: 68 | W93: 0.01938278709 | X93: 0.5264355913 | Y93: 0.69 | Z93: 0.8192002759 | AA93: 0.1396025851 | AB93: 0.02666665542 | AC93: 0.934368706 | AD93: 0.9164024271 | AE93: 0.4326427946 | AF93: 0.3193959319
A94: 0.01938278709 | C94: 69 | D94: 0.002290313178 | F94: 5.671643743e-14 | O94: =IF(K94="","",AVERAGE(L$26:L94)) ->  | P94: =IFERROR(_xlfn.STDEV.S(L$26:L94)/J94^0.5,"") ->  | U94: 69 | W94: 0.02275013195 | X94: 0.55177381 | Y94: 0.7 | Z94: 0.8241694647 | AA94: 0.1506180201 | AB94: 0.02864845417 | AC94: 0.9371723326 | AD94: 0.9246304252 | AE94: 0.44635154 | AF94: 0.3257032273
A95: 0.02275013195 | C95: 70 | D95: 0.002620551386 | F95: 1.249290269e-13 | O95: =IF(K95="","",AVERAGE(L$26:L95)) ->  | P95: =IFERROR(_xlfn.STDEV.S(L$26:L95)/J95^0.5,"") ->  | U95: 70 | W95: 0.02659757402 | X95: 0.5772326894 | Y95: 0.71 | Z95: 0.8289826287 | AA95: 0.1621786921 | AB95: 0.03085042934 | AC95: 0.9397840582 | AD95: 0.9318086761 | AE95: 0.4600082294 | AF95: 0.3319004563
A96: 0.02659757402 | C96: 71 | D96: 0.002989541111 | F96: 2.797449801e-13 | O96: =IF(K96="","",AVERAGE(L$26:L96)) ->  | P96: =IFERROR(_xlfn.STDEV.S(L$26:L96)/J96^0.5,"") ->  | U96: 71 | W96: 0.03097407571 | X96: 0.6027283903 | Y96: 0.72 | Z96: 0.8336451288 | AA96: 0.1742810718 | AB96: 0.03327194826 | AC96: 0.9422243234 | AD96: 0.9378547661 | AE96: 0.4735844531 | AF96: 0.3380335935
A97: 0.03097407571 | C97: 72 | D97: 0.003400110658 | F97: 6.370692673e-13 | O97: =IF(K97="","",AVERAGE(L$26:L97)) ->  | P97: =IFERROR(_xlfn.STDEV.S(L$26:L97)/J97^0.5,"") ->  | U97: 72 | W97: 0.03593031911 | X97: 0.6281732399 | Y97: 0.73 | Z97: 0.8381621382 | AA97: 0.186919568 | AB97: 0.03587104241 | AC97: 0.9445121483 | AD97: 0.9431364671 | AE97: 0.4870550979 | AF97: 0.3441160806
A98: 0.03593031911 | C98: 73 | D98: 0.003854969936 | F98: 1.476074215e-12 | O98: =IF(K98="","",AVERAGE(L$26:L98)) ->  | P98: =IFERROR(_xlfn.STDEV.S(L$26:L98)/J98^0.5,"") ->  | U98: 73 | W98: 0.04151821969 | X98: 0.6534761483 | Y98: 0.74 | Z98: 0.8425386476 | AA98: 0.2000851744 | AB98: 0.038620717 | AC98: 0.9466655945 | AD98: 0.9477969733 | AE98: 0.5004013047 | AF98: 0.3501418786
A99: 0.04151821969 | C99: 74 | D99: 0.004356636219 | F99: 3.480851136e-12 | O99: =IF(K99="","",AVERAGE(L$26:L99)) ->  | P99: =IFERROR(_xlfn.STDEV.S(L$26:L99)/J99^0.5,"") ->  | U99: 74 | W99: 0.04779035227 | X99: 0.6785430908 | Y99: 0.75 | Z99: 0.8467794713 | AA99: 0.2137665055 | AB99: 0.04152244829 | AC99: 0.9487020654 | AD99: 0.9517229657 | AE99: 0.5136116692 | AF99: 0.3560930652
A100: 0.04779035227 | C100: 75 | D100: 0.004907351289 | F100: 8.357156856e-12 | O100: =IF(K100="","",AVERAGE(L$26:L100)) ->  | P100: =IFERROR(_xlfn.STDEV.S(L$26:L100)/J100^0.5,"") ->  | U100: 75 | W100: 0.0547992917 | X100: 0.7032776593 | Y100: 0.76 | Z100: 0.8508892521 | AA100: 0.2279484976 | AB100: 0.04462368812 | AC100: 0.9506383469 | AD100: 0.9552111341 | AE100: 0.5266834433 | AF100: 0.3620058746
A101: 0.0547992917 | C101: 76 | D101: 0.00550899092 | F101: 2.043350355e-11 | O101: =IF(K101="","",AVERAGE(L$26:L101)) ->  | P101: =IFERROR(_xlfn.STDEV.S(L$26:L101)/J101^0.5,"") ->  | U101: 76 | W101: 0.06259687279 | X101: 0.7275816867 | Y101: 0.77 | Z101: 0.8548724675 | AA101: 0.2426142971 | AB101: 0.04798180044 | AC101: 0.9524902173 | AD101: 0.9581873062 | AE101: 0.5396194397 | AF101: 0.3679180996
A102: 0.06259687279 | C102: 77 | D102: 0.006162968224 | F102: 5.088865283e-11 | O102: =IF(K102="","",AVERAGE(L$26:L102)) ->  | P102: =IFERROR(_xlfn.STDEV.S(L$26:L102)/J102^0.5,"") ->  | U102: 77 | W102: 0.07123337741 | X102: 0.7513559478 | Y102: 0.78 | Z102: 0.8587334345 | AA102: 0.2577436102 | AB102: 0.05164761142 | AC102: 0.9542717342 | AD102: 0.9607967364 | AE102: 0.5524249374 | AF102: 0.3738640264
A103: 0.07123337741 | C103: 78 | D103: 0.006870132823 | F103: 1.291020575e-10 | O103: =IF(K103="","",AVERAGE(L$26:L103)) ->  | P103: =IFERROR(_xlfn.STDEV.S(L$26:L103)/J103^0.5,"") ->  | U103: 78 | W103: 0.08075665923 | X103: 0.774500942 | Y103: 0.79 | Z103: 0.8624763154 | AA103: 0.2733141553 | AB103: 0.0556196448 | AC103: 0.955994489 | AD103: 0.9630157308 | AE103: 0.5651045785 | AF103: 0.3798346938
A104: 0.08075665923 | C104: 79 | D104: 0.007630668402 | F104: 3.336302603e-10 | O104: =IF(K104="","",AVERAGE(L$26:L104)) ->  | P104: =IFERROR(_xlfn.STDEV.S(L$26:L104)/J104^0.5,"") ->  | U104: 79 | W104: 0.09121121973 | X104: 0.79691776 | Y104: 0.8 | Z104: 0.8661051228 | AA104: 0.2893004564 | AB104: 0.05986816409 | AC104: 0.9576670057 | AD104: 0.9650935913 | AE104: 0.5776592658 | AF104: 0.3858086729
A105: 0.09121121973 | C105: 80 | D105: 0.008443991674 | F105: 8.780816559e-10 | O105: =IF(K105="","",AVERAGE(L$26:L105)) ->  | P105: =IFERROR(_xlfn.STDEV.S(L$26:L105)/J105^0.5,"") ->  | U105: 80 | W105: 0.1026372518 | X105: 0.8185090397 | Y105: 0.81 | Z105: 0.8696237248 | AA105: 0.3056752328 | AB105: 0.06436997063 | AC105: 0.959294288 | AD105: 0.9670169258 | AE105: 0.5900860494 | AF105: 0.3917740805
A106: 0.1026372518 | C106: 81 | D106: 0.009308656283 | F106: 2.352730632e-09 | O106: =IF(K106="","",AVERAGE(L$26:L106)) ->  | P106: =IFERROR(_xlfn.STDEV.S(L$26:L106)/J106^0.5,"") ->  | U106: 81 | W106: 0.1150696702 | X106: 0.8391800158 | Y106: 0.82 | Z106: 0.8730358501 | AA106: 0.3224081593 | AB106: 0.06916682203 | AC106: 0.9608777233 | AD106: 0.968737316 | AE106: 0.6023780144 | AF106: 0.3977377348
A107: 0.1150696702 | C107: 82 | D107: 0.01022226555 | F107: 6.413573699e-09 | O107: =IF(K107="","",AVERAGE(L$26:L107)) ->  | P107: =IFERROR(_xlfn.STDEV.S(L$26:L107)/J107^0.5,"") ->  | U107: 82 | W107: 0.1285371493 | X107: 0.8588396668 | Y107: 0.83 | Z107: 0.8763450927 | AA107: 0.3394676146 | AB107: 0.07432557261 | AC107: 0.9624153287 | AD107: 0.9703546888 | AE107: 0.6145283425 | AF107: 0.4036811291
A108: 0.1285371493 | C108: 83 | D108: 0.01118139828 | F108: 1.777083035e-08 | O108: =IF(K108="","",AVERAGE(L$26:L108)) ->  | P108: =IFERROR(_xlfn.STDEV.S(L$26:L108)/J108^0.5,"") ->  | U108: 83 | W108: 0.1430611922 | X108: 0.8774019638 | Y108: 0.84 | Z108: 0.879554917 | AA108: 0.3568192719 | AB108: 0.07989219791 | AC108: 0.9639024202 | AD108: 0.9718608029 | AE108: 0.626534374 | AF108: 0.4095882891
A109: 0.1430611922 | C109: 84 | D109: 0.01218155187 | F109: 4.998273949e-08 | O109: =IF(K109="","",AVERAGE(L$26:L109)) ->  | P109: =IFERROR(_xlfn.STDEV.S(L$26:L109)/J109^0.5,"") ->  | U109: 84 | W109: 0.1586552539 | X109: 0.8947872258 | Y109: 0.85 | Z109: 0.8826686622 | AA109: 0.3744280049 | AB109: 0.08583907043 | AC109: 0.9653326669 | AD109: 0.9733174687 | AE109: 0.6383974065 | AF109: 0.4154344742
A110: 0.1586552539 | C110: 85 | D110: 0.01321710715 | F110: 1.424497469e-07 | O110: =IF(K110="","",AVERAGE(L$26:L110)) ->  | P110: =IFERROR(_xlfn.STDEV.S(L$26:L110)/J110^0.5,"") ->  | U110: 85 | W110: 0.1753239449 | X110: 0.9109235866 | Y110: 0.86 | Z110: 0.8856895471 | AA110: 0.3922564956 | AB110: 0.09211325504 | AC110: 0.9666992625 | AD110: 0.9747391085 | AE110: 0.6501224933 | AF110: 0.4212405289
A111: 0.1753239449 | C111: 86 | D111: 0.01428131876 | F111: 4.104069503e-07 | O111: =IF(K111="","",AVERAGE(L$26:L111)) ->  | P111: =IFERROR(_xlfn.STDEV.S(L$26:L111)/J111^0.5,"") ->  | U111: 86 | W111: 0.1930623371 | X111: 0.9257485765 | Y111: 0.87 | Z111: 0.8886206739 | AA111: 0.4102670367 | AB111: 0.09866223839 | AC111: 0.9679960126 | AD111: 0.9761216017 | AE111: 0.6617153405 | AF111: 0.4270384017
A112: 0.1930623371 | C112: 87 | D112: 0.0153663349 | F112: 1.191709851e-06 | O112: =IF(K112="","",AVERAGE(L$26:L112)) ->  | P112: =IFERROR(_xlfn.STDEV.S(L$26:L112)/J112^0.5,"") ->  | U112: 87 | W112: 0.2118553986 | X112: 0.9392108251 | Y112: 0.88 | Z112: 0.8914650332 | AA112: 0.4284200482 | AB112: 0.1054950891 | AC112: 0.969218307 | AD112: 0.9774834915 | AE112: 0.6731792041 | AF112: 0.4328596514
A113: 0.2118553986 | C113: 88 | D113: 0.01646324889 | F113: 3.474368366e-06 | O113: =IF(K113="","",AVERAGE(L$26:L113)) ->  | P113: =IFERROR(_xlfn.STDEV.S(L$26:L113)/J113^0.5,"") ->  | U113: 88 | W113: 0.2316775746 | X113: 0.951271889 | Y113: 0.89 | Z113: 0.8942255077 | AA113: 0.4466759907 | AB113: 0.1126676947 | AC113: 0.9703638404 | AD113: 0.9788093251 | AE113: 0.6845089906 | AF113: 0.4386846025
A114: 0.2316775746 | C114: 89 | D114: 0.01756218487 | F114: 1.012218295e-05 | O114: =IF(K114="","",AVERAGE(L$26:L114)) ->  | P114: =IFERROR(_xlfn.STDEV.S(L$26:L114)/J114^0.5,"") ->  | U114: 89 | W114: 0.2524925375 | X114: 0.96190821 | Y114: 0.9 | Z114: 0.8969048759 | AA114: 0.4649942479 | AB114: 0.1202964705 | AC114: 0.9714331155 | AD114: 0.9801032234 | AE114: 0.6956853572 | AF114: 0.4444978651
A115: 0.2524925375 | C115: 90 | D115: 0.01865241797 | F115: 2.929847515e-05 | O115: =IF(K115="","",AVERAGE(L$26:L115)) ->  | P115: =IFERROR(_xlfn.STDEV.S(L$26:L115)/J115^0.5,"") ->  | U115: 90 | W115: 0.2742531178 | X115: 0.9711132079 | Y115: 0.91 | Z115: 0.8995058169 | AA115: 0.4833349757 | AB115: 0.1284877085 | AC115: 0.9724296363 | AD115: 0.9813311906 | AE115: 0.7066797009 | AF115: 0.450274309
A116: 0.2742531178 | C116: 91 | D116: 0.01972252877 | F116: 8.366526308e-05 | O116: =IF(K116="","",AVERAGE(L$26:L116)) ->  | P116: =IFERROR(_xlfn.STDEV.S(L$26:L116)/J116^0.5,"") ->  | U116: 91 | W116: 0.2969014286 | X116: 0.9788995142 | Y116: 0.92 | Z116: 0.9020309129 | AA116: 0.5016574062 | AB116: 0.1373394758 | AC116: 0.973359723 | AD116: 0.9825045585 | AE116: 0.7174591471 | AF116: 0.4560162719
A117: 0.2969014286 | C117: 92 | D117: 0.0207605897 | F117: 0.0002337535889 | O117: =IF(K117="","",AVERAGE(L$26:L117)) ->  | P117: =IFERROR(_xlfn.STDEV.S(L$26:L117)/J117^0.5,"") ->  | U117: 92 | W117: 0.3203691909 | X117: 0.9853013504 | Y117: 0.93 | Z117: 0.9044826537 | AA117: 0.5199222859 | AB117: 0.1469032312 | AC117: 0.9742320608 | AD117: 0.9836913187 | AE117: 0.7279922157 | AF117: 0.4617138186
A118: 0.3203691909 | C118: 93 | D118: 0.02175438019 | F118: 0.0006327927717 | O118: =IF(K118="","",AVERAGE(L$26:L118)) ->  | P118: =IFERROR(_xlfn.STDEV.S(L$26:L118)/J118^0.5,"") ->  | U118: 93 | W118: 0.3445782584 | X118: 0.9903770577 | Y118: 0.94 | Z118: 0.9068634399 | AA118: 0.5380904231 | AB118: 0.1572038606 | AC118: 0.9750571102 | AD118: 0.9847451865 | AE118: 0.7382544865 | AF118: 0.4673544814
A119: 0.3445782584 | C119: 94 | D119: 0.02269162543 | F119: 0.001641425632 | O119: =IF(K119="","",AVERAGE(L$26:L119)) ->  | P119: =IFERROR(_xlfn.STDEV.S(L$26:L119)/J119^0.5,"") ->  | U119: 94 | W119: 0.3694413402 | X119: 0.9942117821 | Y119: 0.95 | Z119: 0.9091755862 | AA119: 0.5561243154 | AB119: 0.1681557398 | AC119: 0.9758463479 | AD119: 0.985749606 | AE119: 0.748234241 | AF119: 0.472920338
A120: 0.3694413402 | C120: 95 | D120: 0.02356025266 | F120: 0.004029315091 | O120: =IF(K120="","",AVERAGE(L$26:L120)) ->  | P120: =IFERROR(_xlfn.STDEV.S(L$26:L120)/J120^0.5,"") ->  | U120: 95 | W120: 0.3948629105 | X120: 0.996920321 | Y120: 0.96 | Z120: 0.9114213244 | AA120: 0.5739868181 | AB120: 0.1795844571 | AC120: 0.9766113433 | AD120: 0.9866942753 | AE120: 0.757938104 | AF120: 0.4784456745
A121: 0.3948629105 | C121: 96 | D121: 0.02434865729 | F121: 0.00923438795 | O121: =IF(K121="","",AVERAGE(L$26:L121)) ->  | P121: =IFERROR(_xlfn.STDEV.S(L$26:L121)/J121^0.5,"") ->  | U121: 96 | W121: 0.4207402906 | X121: 0.9986501367 | Y121: 0.97 | Z121: 0.9136028071 | AA121: 0.591642945 | AB121: 0.1912607673 | AC121: 0.9773626744 | AD121: 0.98761113 | AE121: 0.7673826298 | AF121: 0.4839610758
A122: 0.4207402906 | C122: =C121+OFFSET(W$23,,B$11-1) -> 97 | D122: 0.02504597077 | F122: 0.01947848984 | I122: =IF(L122<>"",0,"") ->  | J122: =IF(B$9>J121,J121+1,"") ->  | K122: =IFERROR(( MOD(( MOD( MOD( 999999999999989, MOD( PM_Index*2499997 +$J122*1800451, 7450589 ) * 4658 + 7450581 ) * 383, 99991 ) * 7440893 + MOD( MOD( 999999999999989, MOD( PM_Index*2246527 +$J122*2399993, 7450987 ) * 7580 + 7560584 ) * 17669, 7440893 )) * 1343, 4294967296 ) + 0.5 ) / 4294967296,"") ->  | M122: =IF(L122="",NA(),L122) ->  | O122: =IF(K122="","",AVERAGE(L$26:L122)) ->  | P122: =IFERROR(_xlfn.STDEV.S(L$26:L122)/J122^0.5,"") ->  | U122: 97 | W122: 0.4469648834 | X122: 0.9995845426 | Y122: 0.98 | Z122: 0.91572211 | AA122: 0.6090584284 | AB122: 0.2030581325 | AC122: 0.978108838 | AD122: 0.9885135622 | AE122: 0.7765858876 | AF122: 0.4895053087
A123: 0.4469648834 | C123: 98 | D123: 0.02564232111 | F123: 0.03727363016 | O123: =IF(K123="","",AVERAGE(L$26:L123)) ->  | P123: =IFERROR(_xlfn.STDEV.S(L$26:L123)/J123^0.5,"") ->  | U123: 98 | W123: 0.4734235357 | X123: 0.9999460667 | Y123: 0.99 | Z123: 0.9177812352 | AA123: 0.6262016224 | AB123: 0.2149584153 | AC123: 0.9788553485 | AD123: 0.9893809686 | AE123: 0.7855631662 | AF123: 0.4950680483
A124: 0.4734235357 | C124: 99 | D124: 0.02612907706 | F124: 0.06381308427 | O124: =IF(K124="","",AVERAGE(L$26:L124)) ->  | P124: =IFERROR(_xlfn.STDEV.S(L$26:L124)/J124^0.5,"") ->  | U124: 99 | W124: 0.5 | X124: 1 | Y124: 1 | Z124: 0.9197821141 | AA124: 0.6430418727 | AB124: 0.2270786637 | AC124: 0.979604115 | AD124: 0.9901494782 | AE124: 0.7943226783 | AF124: 0.5006329309
A125: 0.5 | C125: 100 | D125: 0.02649906718 | F125: 0.09652339917 | O125: =IF(K125="","",AVERAGE(L$26:L125)) ->  | P125: =IFERROR(_xlfn.STDEV.S(L$26:L125)/J125^0.5,"") ->  | U125: 100 | W125: 0.5265764643 | Y125: 1.01 | Z125: 0.9217266096 | AA125: 0.6595514065 | AB125: 0.2395806356 | AC125: 0.9803531082 | AD125: 0.9909015051 | AE125: 0.8028628118 | AF125: 0.5061814495
A126: 0.5265764643 | C126: 101 | D126: 0.0267467655 | F126: 0.1276692496 | O126: =IF(K126="","",AVERAGE(L$26:L126)) ->  | P126: =IFERROR(_xlfn.STDEV.S(L$26:L126)/J126^0.5,"") ->  | U126: 101 | W126: 0.5530351166 | Y126: 1.02 | Z126: 0.923616519 | AA126: 0.6757039609 | AB126: 0.2526815549 | AC126: 0.9810964423 | AD126: 0.9916700147 | AE126: 0.8111693823 | AF126: 0.5117167213
A127: 0.5530351166 | C127: 102 | D127: 0.02686843682 | F127: 0.1465852038 | O127: =IF(K127="","",AVERAGE(L$26:L127)) ->  | P127: =IFERROR(_xlfn.STDEV.S(L$26:L127)/J127^0.5,"") ->  | U127: 102 | W127: 0.5792597094 | Y127: 1.03 | Z127: 0.9254535765 | AA127: 0.6914764069 | AB127: 0.2665128103 | AC127: 0.9818249923 | AD127: 0.992406589 | AE127: 0.8192243122 | AF127: 0.5172227718
A128: 0.5792597094 | C128: 103 | D128: 0.02686223594 | F128: 0.1455547909 | O128: =IF(K128="","",AVERAGE(L$26:L128)) ->  | P128: =IFERROR(_xlfn.STDEV.S(L$26:L128)/J128^0.5,"") ->  | U128: 103 | W128: 0.6051370895 | Y128: 1.04 | Z128: 0.9272394552 | AA128: 0.7068472396 | AB128: 0.2811129961 | AC128: 0.9825275138 | AD128: 0.9930669304 | AE128: 0.8270143116 | AF128: 0.5226849906
A129: 0.6051370895 | C129: 104 | D129: 0.02672825709 | F129: 0.1250197871 | O129: =IF(K129="","",AVERAGE(L$26:L129)) ->  | P129: =IFERROR(_xlfn.STDEV.S(L$26:L129)/J129^0.5,"") ->  | U129: 104 | W129: 0.6305586598 | Y129: 1.05 | Z129: 0.9289757699 | AA129: 0.7217980248 | AB129: 0.2963764528 | AC129: 0.9831920795 | AD129: 0.9936767933 | AE129: 0.834532554 | AF129: 0.5280879877
A130: 0.6305586598 | C130: 105 | D130: 0.02646853131 | F130: 0.09326613174 | O130: =IF(K130="","",AVERAGE(L$26:L130)) ->  | P130: =IFERROR(_xlfn.STDEV.S(L$26:L130)/J130^0.5,"") ->  | U130: 105 | W130: 0.6554217416 | Y130: 1.06 | Z130: 0.930664079 | AA130: 0.7363121048 | AB130: 0.3122074332 | AC130: 0.9838075925 | AD130: 0.9942495699 | AE130: 0.8417803533 | AF130: 0.5334602052
A131: 0.6554217416 | C131: 106 | D131: 0.02608697222 | F131: 0.06089504491 | O131: =IF(K131="","",AVERAGE(L$26:L131)) ->  | P131: =IFERROR(_xlfn.STDEV.S(L$26:L131)/J131^0.5,"") ->  | U131: 106 | W131: 0.6796308091 | Y131: 1.07 | Z131: 0.9323058867 | AA131: 0.7503759536 | AB131: 0.3284939511 | AC131: 0.9843651709 | AD131: 0.9947986525 | AE131: 0.848768372 | AF131: 0.5388378774
A132: 0.6796308091 | C132: 107 | D132: 0.02558927208 | F132: 0.03516783782 | O132: =IF(K132="","",AVERAGE(L$26:L132)) ->  | P132: =IFERROR(_xlfn.STDEV.S(L$26:L132)/J132^0.5,"") ->  | U132: 107 | W132: 0.7030985714 | Y132: 1.08 | Z132: 0.9339026448 | AA132: 0.7639773339 | AB132: 0.3451729482 | AC132: 0.9848592922 | AD132: 0.9953652481 | AE132: 0.8555178307 | AF132: 0.5442595761
A133: 0.7030985714 | C133: 108 | D133: 0.02498275232 | F133: 0.01819430348 | O133: =IF(K133="","",AVERAGE(L$26:L133)) ->  | P133: =IFERROR(_xlfn.STDEV.S(L$26:L133)/J133^0.5,"") ->  | U133: 108 | W133: 0.7257468822 | Y133: 1.09 | Z133: 0.9354557552 | AA133: 0.7771067933 | AB133: 0.3621358126 | AC133: 0.9852885252 | AD133: 0.9958288263 | AE133: 0.8620545438 | AF133: 0.549716535
A134: 0.7257468822 | C134: 109 | D134: 0.02427617427 | F134: 0.008551188845 | O134: =IF(K134="","",AVERAGE(L$26:L134)) ->  | P134: =IFERROR(_xlfn.STDEV.S(L$26:L134)/J134^0.5,"") ->  | U134: 109 | W134: 0.7475074625 | Y134: 1.1 | Z134: 0.9369665711 | AA134: 0.7897564079 | AB134: 0.3793281329 | AC134: 0.9856556775 | AD134: 0.9962501674 | AE134: 0.8684029558 | AF134: 0.5551999878
A135: 0.7475074625 | C135: 110 | D135: 0.02347951738 | F135: 0.003704206104 | O135: =IF(K135="","",AVERAGE(L$26:L135)) ->  | P135: =IFERROR(_xlfn.STDEV.S(L$26:L135)/J135^0.5,"") ->  | U135: 110 | W135: 0.7683224254 | Y135: 1.11 | Z135: 0.9384363993 | AA135: 0.8019210805 | AB135: 0.3966933887 | AC135: 0.9859673724 | AD135: 0.9966560559 | AE135: 0.8745849399 | AF135: 0.5607031163
A136: 0.7683224254 | C136: 111 | D136: 0.022603733 | F136: 0.001500088535 | O136: =IF(K136="","",AVERAGE(L$26:L136)) ->  | P136: =IFERROR(_xlfn.STDEV.S(L$26:L136)/J136^0.5,"") ->  | U136: 111 | W136: 0.7881446014 | Y136: 1.12 | Z136: 0.9398665018 | AA136: 0.813597312 | AB136: 0.4142912639 | AC136: 0.9862331829 | AD136: 0.9970289788 | AE136: 0.8806185977 | AF136: 0.5662399465
A137: 0.7881446014 | C137: 112 | D137: 0.02166048277 | F137: 0.0005756188523 | O137: =IF(K137="","",AVERAGE(L$26:L137)) ->  | P137: =IFERROR(_xlfn.STDEV.S(L$26:L137)/J137^0.5,"") ->  | U137: 112 | W137: 0.8069376629 | Y137: 1.13 | Z137: 0.9412580972 | AA137: 0.8247843299 | AB137: 0.4322250979 | AC137: 0.986464509 | AD137: 0.9973905698 | AE137: 0.8865159056 | AF137: 0.571815933
A138: 0.8069376629 | C138: 113 | D138: 0.02066187055 | F138: 0.0002118865547 | O138: =IF(K138="","",AVERAGE(L$26:L138)) ->  | P138: =IFERROR(_xlfn.STDEV.S(L$26:L138)/J138^0.5,"") ->  | U138: 113 | W138: 0.8246760551 | Y138: 1.14 | Z138: 0.9426123629 | AA138: 0.8354827709 | AB138: 0.4506657173 | AC138: 0.9866733789 | AD138: 0.9977068331 | AE138: 0.8922803613 | AF138: 0.5774306864
A139: 0.8246760551 | C139: 114 | D139: 0.01962017685 | F139: 7.564800328e-05 | O139: =IF(K139="","",AVERAGE(L$26:L139)) ->  | P139: =IFERROR(_xlfn.STDEV.S(L$26:L139)/J139^0.5,"") ->  | U139: 114 | W139: 0.8413447461 | Y139: 1.15 | Z139: 0.9439304361 | AA139: 0.8456958816 | AB139: 0.4696139658 | AC139: 0.9868712968 | AD139: 0.9979592257 | AE139: 0.8979091603 | AF139: 0.5830838169
A140: 0.8413447461 | C140: 115 | D140: 0.01854760401 | F140: 2.644725526e-05 | O140: =IF(K140="","",AVERAGE(L$26:L140)) ->  | P140: =IFERROR(_xlfn.STDEV.S(L$26:L140)/J140^0.5,"") ->  | U140: 115 | W140: 0.8569388078 | Y140: 1.16 | Z140: 0.9452134153 | AA140: 0.855428088 | AB140: 0.4889099833 | AC140: 0.9870682777 | AD140: 0.9981817433 | AE140: 0.9033953712 | AF140: 0.5888152602
A141: 0.8569388078 | C141: 116 | D141: 0.01745603939 | F141: 9.128762684e-06 | O141: =IF(K141="","",AVERAGE(L$26:L141)) ->  | P141: =IFERROR(_xlfn.STDEV.S(L$26:L141)/J141^0.5,"") ->  | U141: 116 | W141: 0.8714628507 | Y141: 1.17 | Z141: 0.946462362 | AA141: 0.8646859338 | AB141: 0.5082437513 | AC141: 0.9872722152 | AD141: 0.9983888082 | AE141: 0.9087289361 | AF141: 0.5946696272
A142: 0.8714628507 | C142: 117 | D142: 0.01635684287 | F142: 3.132431654e-06 | O142: =IF(K142="","",AVERAGE(L$26:L142)) ->  | P142: =IFERROR(_xlfn.STDEV.S(L$26:L142)/J142^0.5,"") ->  | U142: 117 | W142: 0.8849303298 | Y142: 1.18 | Z142: 0.9476783021 | AA142: 0.8734769401 | AB142: 0.5274153396 | AC142: 0.9874886042 | AD142: 0.9985701188 | AE142: 0.9138976688 | AF142: 0.6006917239
A143: 0.8849303298 | C143: 118 | D143: 0.01526066334 | F143: 1.074639011e-06 | O143: =IF(K143="","",AVERAGE(L$26:L143)) ->  | P143: =IFERROR(_xlfn.STDEV.S(L$26:L143)/J143^0.5,"") ->  | U143: 118 | W143: 0.8973627482 | Y143: 1.19 | Z143: 0.9488622269 | AA143: 0.8818105938 | AB143: 0.5462840799 | AC143: 0.9877205912 | AD143: 0.9987473087 | AE143: 0.9188896818 | AF143: 0.6068603161
A144: 0.8973627482 | C144: 119 | D144: 0.0141772876 | F144: 3.703136896e-07 | O144: =IF(K144="","",AVERAGE(L$26:L144)) ->  | P144: =IFERROR(_xlfn.STDEV.S(L$26:L144)/J144^0.5,"") ->  | U144: 119 | W144: 0.9087887803 | Y144: 1.2 | Z144: 0.9500150945 | AA144: 0.8896971792 | AB144: 0.5647940844 | AC144: 0.9879692551 | AD144: 0.9989049253 | AE144: 0.9236958114 | AF144: 0.6131341046
A145: 0.9087887803 | C145: 120 | D145: 0.01311552341 | F145: 1.286531814e-07 | O145: =IF(K145="","",AVERAGE(L$26:L145)) ->  | P145: =IFERROR(_xlfn.STDEV.S(L$26:L145)/J145^0.5,"") ->  | U145: 120 | W145: 0.9192433408 | Y145: 1.21 | Z145: 0.951137831 | AA145: 0.8971484237 | AB145: 0.5828797643 | AC145: 0.9882340277 | AD145: 0.9990460591 | AE145: 0.9283096182 | AF145: 0.6194719849
A146: 0.9192433408 | C146: 121 | D146: 0.01208311725 | F146: 4.519528063e-08 | O146: =IF(K146="","",AVERAGE(L$26:L146)) ->  | P146: =IFERROR(_xlfn.STDEV.S(L$26:L146)/J146^0.5,"") ->  | U146: 121 | W146: 0.9287666226 | Y146: 1.22 | Z146: 0.9522313318 | AA146: 0.9041766453 | AB146: 0.600638132 | AC146: 0.9885131801 | AD146: 0.9991408351 | AE146: 0.9327273866 | AF146: 0.6258449306
A147: 0.9287666226 | C147: 122 | D147: 0.01108670583 | F147: 1.609088207e-08 | O147: =IF(K147="","",AVERAGE(L$26:L147)) ->  | P147: =IFERROR(_xlfn.STDEV.S(L$26:L147)/J147^0.5,"") ->  | U147: 122 | W147: 0.9374031272 | Y147: 1.23 | Z147: 0.9532964626 | AA147: 0.9107956576 | AB147: 0.6182292585 | AC147: 0.9888042981 | AD147: 0.9992263395 | AE147: 0.9369479563 | AF147: 0.6322139801
A148: 0.9374031272 | C148: 123 | D148: 0.01013179944 | F148: 5.816143456e-09 | O148: =IF(K148="","",AVERAGE(L$26:L148)) ->  | P148: =IFERROR(_xlfn.STDEV.S(L$26:L148)/J148^0.5,"") ->  | U148: 123 | W148: 0.9452007083 | Y148: 1.24 | Z148: 0.9543340605 | AA148: 0.9170196408 | AB148: 0.6358336715 | AC148: 0.9891046694 | AD148: 0.9993015422 | AE148: 0.940972552 | AF148: 0.6385354965
A149: 0.9452007083 | C149: 124 | D149: 0.009222794092 | F149: 2.137058974e-09 | O149: =IF(K149="","",AVERAGE(L$26:L149)) ->  | P149: =IFERROR(_xlfn.STDEV.S(L$26:L149)/J149^0.5,"") ->  | U149: 124 | W149: 0.9522096477 | Y149: 1.25 | Z149: 0.9553449349 | AA149: 0.9228638953 | AB149: 0.6534496838 | AC149: 0.9894115464 | AD149: 0.9993685035 | AE149: 0.9448038014 | AF149: 0.6447611675
A150: 0.9522096477 | C150: 125 | D150: 0.00836300905 | F150: 7.989520157e-10 | O150: =IF(K150="","",AVERAGE(L$26:L150)) ->  | P150: =IFERROR(_xlfn.STDEV.S(L$26:L150)/J150^0.5,"") ->  | U150: 125 | W150: 0.9584817803 | Y150: 1.26 | Z150: 0.9563298687 | AA150: 0.9283439511 | AB150: 0.6710051687 | AC150: 0.9897222636 | AD150: 0.9994220725 | AE150: 0.9484447508 | AF150: 0.6509194349
A151: 0.9584817803 | C151: 126 | D151: 0.007554745541 | F151: 3.04097969e-10 | O151: =IF(K151="","",AVERAGE(L$26:L151)) ->  | P151: =IFERROR(_xlfn.STDEV.S(L$26:L151)/J151^0.5,"") ->  | U151: 126 | W151: 0.9640696809 | Y151: 1.27 | Z151: 0.9572896194 | AA151: 0.9334760064 | AB151: 0.6883535527 | AC151: 0.990034248 | AD151: 0.9994591588 | AE151: 0.9518985918 | AF151: 0.6570630917
A152: 0.9640696809 | C152: 127 | D152: 0.00679936241 | F152: 1.178840359e-10 | O152: =IF(K152="","",AVERAGE(L$26:L152)) ->  | P152: =IFERROR(_xlfn.STDEV.S(L$26:L152)/J152^0.5,"") ->  | U152: 127 | W152: 0.9690259243 | Y152: 1.28 | Z152: 0.9582249193 | AA152: 0.93827616 | AB152: 0.7054115317 | AC152: 0.9903449624 | AD152: 0.9994910941 | AE152: 0.955168387 | AF152: 0.6632449308
A153: =OFFSET(W152,,B$11-1) -> 0.9690259243 | C153: 128 | D153: =_xlfn.T.DIST((C153+B$22/2-B$17)/B$18,B$9-1,1)-_xlfn.T.DIST((C153-B$22/2-B$17)/B$18,B$9-1,1) -> 0.006097364414 | F153: =_xlfn.T.DIST((C153+B$22/2-B$17)/B$19,B$9-1,1)-_xlfn.T.DIST((C153-B$22/2-B$17)/B$19,B$9-1,1) -> 4.655009711e-11 | O153: =IF(K153="","",AVERAGE(L$26:L153)) ->  | P153: =IFERROR(_xlfn.STDEV.S(L$26:L153)/J153^0.5,"") ->  | U153: 128 | W153: =NORMDIST(C154,100,15,1) -> 0.973402426 | X153: =IFERROR(BETADIST(C154,6,3,0,100),"") ->  | Y153: =C154/100 -> 1.29 | Z153: 0.9591364774 | AA153: 0.9427608643 | AB153: 0.7221183672 | AC153: 0.9906518149 | AD153: 0.9995209692 | AE153: 0.9582568766 | AF153: 0.6694704069
A154: 0.973402426 | C154: =C153+OFFSET(W$23,,B$11-1) -> 129 | D154: 0.00544849896 | F154: 1.872491051e-11 | I154: =IF(L154<>"",0,"") ->  | J154: =IF(B$9>J153,J153+1,"") ->  | K154: =IFERROR(( MOD(( MOD( MOD( 999999999999989, MOD( PM_Index*2499997 +$J154*1800451, 7450589 ) * 4658 + 7450581 ) * 383, 99991 ) * 7440893 + MOD( MOD( 999999999999989, MOD( PM_Index*2246527 +$J154*2399993, 7450987 ) * 7580 + 7560584 ) * 17669, 7440893 )) * 1343, 4294967296 ) + 0.5 ) / 4294967296,"") ->  | M154: =IF(L154="",NA(),L154) ->  | O154: =IF(K154="","",AVERAGE(L$26:L154)) ->  | P154: =IFERROR(_xlfn.STDEV.S(L$26:L154)/J154^0.5,"") ->  | U154: 129 | W154: 0.9772498681 | Y154: 1.3 | Z154: =_xlfn.LOGNORM.DIST(C155,(LN(120)+LN(10))/2,(LN(120)-LN(10))/3.29,1) -> 0.9600249793 | AA154: 0.9469461155 | AB154: 0.7385350085 | AC154: 0.9909520715 | AD154: 0.9995508442 | AE154: 0.961166285 | AF154: 0.6757480916
A155: 0.9772498681 | B155: =IF(B$12,A155-A154,"") ->  | C155: 130 | D155: 0.004851857421 | F155: 7.671863145e-12 | L155: =IFERROR(VLOOKUP(K155,A$25:C$225,3),"") ->  | O155: =IF(K155="","",AVERAGE(L$26:L155)) ->  | P155: =IFERROR(_xlfn.STDEV.S(L$26:L155)/J155^0.5,"") ->  | T155: =IF($B$12,OFFSET(W$19,,B$11-1),"") ->  | U155: 130 | W155: 0.9806172129 | Y155: 1.31 | Z155: 0.9608910889 | AA155: 0.9508480368 | AB155: 0.7547251464 | AC155: 0.9912428071 | AD155: 0.9995765986 | AE155: 0.9638987802 | AF155: 0.6820918161
A156: 0.9806172129 | C156: 131 | D156: 0.004305977554 | F156: 3.201106047e-12 | O156: =IF(K156="","",AVERAGE(L$26:L156)) ->  | P156: =IFERROR(_xlfn.STDEV.S(L$26:L156)/J156^0.5,"") ->  | Q156: =IFERROR(TINV(0.1,J156-1)*P156,"") ->  | R156: =IFERROR(O156+Q156,"") ->  | S156: =IFERROR(O156-Q156,"") ->  | U156: 131 | W156: 0.9835513042 | Y156: 1.32 | Z156: 0.9617354483 | AA156: 0.9544821843 | AB156: 0.770721681 | AC156: 0.9915209244 | AD156: 0.9996002926 | AE156: 0.9664569332 | AF156: 0.688544633
A157: 0.9835513042 | C157: 132 | D157: 0.003808944024 | F157: 1.359690138e-12 | O157: =IF(K157="","",AVERAGE(L$26:L157)) ->  | P157: =IFERROR(_xlfn.STDEV.S(L$26:L157)/J157^0.5,"") ->  | U157: 132 | W157: 0.9860965525 | Y157: 1.33 | Z157: 0.9625586792 | AA157: 0.9578640011 | AB157: 0.7864073534 | AC157: 0.9917832689 | AD157: 0.9996250167 | AE157: 0.9688441612 | AF157: 0.6951063476
A158: 0.9860965525 | C158: 133 | D158: 0.003358484547 | F158: 5.878630915e-13 | O158: =IF(K158="","",AVERAGE(L$26:L158)) ->  | P158: =IFERROR(_xlfn.STDEV.S(L$26:L158)/J158^0.5,"") ->  | U158: 133 | W158: 0.9882947019 | Y158: 1.34 | Z158: 0.9633613834 | AA158: 0.9610082046 | AB158: 0.8016486659 | AC158: 0.9920268117 | AD158: 0.9996518013 | AE158: 0.9710651709 | AF158: 0.7017648817
A159: 0.9882947019 | C159: 134 | D159: 0.002952059716 | F159: 2.585709424e-13 | O159: =IF(K159="","",AVERAGE(L$26:L159)) ->  | P159: =IFERROR(_xlfn.STDEV.S(L$26:L159)/J159^0.5,"") ->  | U159: 134 | W159: 0.9901846714 | Y159: 1.35 | Z159: 0.9641441435 | AA159: 0.9639292708 | AB159: 0.8163144406 | AC159: 0.9922488735 | AD159: 0.9996754953 | AE159: 0.9731267161 | AF159: 0.7085087416
A160: 0.9901846714 | C160: 135 | D160: 0.002586945064 | F160: 1.156852392e-13 | O160: =IF(K160="","",AVERAGE(L$26:L160)) ->  | P160: =IFERROR(_xlfn.STDEV.S(L$26:L160)/J160^0.5,"") ->  | U160: 135 | W160: 0.9918024641 | Y160: 1.36 | Z160: 0.9649075237 | AA160: 0.9666410076 | AB160: 0.8303766282 | AC160: 0.9924473622 | AD160: 0.9996960987 | AE160: 0.9750383554 | AF160: 0.7153796163
A161: 0.9918024641 | C161: 136 | D161: 0.002260304431 | F161: 5.251354906e-14 | O161: =IF(K161="","",AVERAGE(L$26:L161)) ->  | P161: =IFERROR(_xlfn.STDEV.S(L$26:L161)/J161^0.5,"") ->  | U161: 136 | W161: 0.9931811377 | Y161: 1.37 | Z161: 0.9656520701 | AA161: 0.969156905 | AB161: 0.8437995871 | AC161: 0.9926209967 | AD161: 0.9997105212 | AE161: 0.9768118958 | AF161: 0.7224108179
A162: 0.9931811377 | C162: 137 | D162: 0.001969254105 | F162: 2.431388424e-14 | O162: =IF(K162="","",AVERAGE(L$26:L162)) ->  | P162: =IFERROR(_xlfn.STDEV.S(L$26:L162)/J162^0.5,"") ->  | U162: 137 | W162: 0.9943508272 | Y162: 1.38 | Z162: 0.9663783119 | AA162: 0.9714896868 | AB162: 0.8565753033 | AC162: 0.9927694931 | AD162: 0.9997239134 | AE162: 0.978460837 | AF162: 0.7296229961
A163: 0.9943508272 | C163: 138 | D163: 0.001710917618 | F163: 1.143529715e-14 | O163: =IF(K163="","",AVERAGE(L$26:L163)) ->  | P163: =IFERROR(_xlfn.STDEV.S(L$26:L163)/J163^0.5,"") ->  | U163: 138 | W163: 0.995338812 | Y163: 1.39 | Z163: 0.9670867612 | AA163: 0.9736517634 | AB163: 0.8686234249 | AC163: 0.9928936871 | AD163: 0.999739366 | AE163: 0.9799993475 | AF163: 0.7369582928
A164: 0.995338812 | C164: 139 | D164: 0.001482471359 | F164: 5.440092821e-15 | O164: =IF(K164="","",AVERAGE(L$26:L164)) ->  | P164: =IFERROR(_xlfn.STDEV.S(L$26:L164)/J164^0.5,"") ->  | U164: 139 | W164: 0.9961696194 | Y164: 1.4 | Z164: 0.9677779145 | AA164: 0.9756547324 | AB164: 0.8798821592 | AC164: 0.9929955698 | AD164: 0.9997496678 | AE164: 0.9814412412 | AF164: 0.7443705387
A165: 0.9961696194 | C165: 140 | D165: 0.001281181436 | F165: 2.664535259e-15 | O165: =IF(K165="","",AVERAGE(L$26:L165)) ->  | P165: =IFERROR(_xlfn.STDEV.S(L$26:L165)/J165^0.5,"") ->  | U165: 140 | W165: 0.9968651577 | Y165: 1.41 | Z165: 0.9684522525 | AA165: 0.9775096082 | AB165: 0.8902932986 | AC165: 0.9930782492 | AD165: 0.9997579092 | AE165: 0.9827985509 | AF165: 0.7518135642
A166: 0.9968651577 | C166: 141 | D166: 0.001104432409 | F166: 1.221245327e-15 | O166: =IF(K166="","",AVERAGE(L$26:L166)) ->  | P166: =IFERROR(_xlfn.STDEV.S(L$26:L166)/J166^0.5,"") ->  | U166: 141 | W166: 0.9974448697 | Y166: 1.42 | Z166: 0.9691102411 | AA166: 0.9792265998 | AB166: 0.8999133635 | AC166: 0.9931458524 | AD166: 0.9997692411 | AE166: 0.9840801016 | AF166: 0.7592657456
A167: 0.9974448697 | C167: 142 | D167: 0.0009497486258 | F167: 0 | O167: =IF(K167="","",AVERAGE(L$26:L167)) ->  | P167: =IFERROR(_xlfn.STDEV.S(L$26:L167)/J167^0.5,"") ->  | U167: 142 | W167: 0.9979259016 | Y167: 1.43 | Z167: 0.9697523315 | AA167: 0.9808153776 | AB167: 0.9088191204 | AC167: 0.99320338 | AD167: 0.9997816032 | AE167: 0.9852917204 | AF167: 0.7666910436
A168: 0.9979259016 | C168: 143 | D168: 0.0008148089883 | F168: 0 | O168: =IF(K168="","",AVERAGE(L$26:L168)) ->  | P168: =IFERROR(_xlfn.STDEV.S(L$26:L168)/J168^0.5,"") ->  | U168: 143 | W168: 0.9983232818 | Y168: 1.44 | Z168: 0.9703789613 | AA168: 0.9822849136 | AB168: 0.9170759474 | AC168: 0.9932565296 | AD168: 0.9997939652 | AE168: 0.9864364457 | AF168: 0.7740588733
A169: 0.9983232818 | C169: 144 | D169: 0.0006974560146 | F169: 0 | O169: =IF(K169="","",AVERAGE(L$26:L169)) ->  | P169: =IFERROR(_xlfn.STDEV.S(L$26:L169)/J169^0.5,"") ->  | U169: 144 | W169: 0.998650102 | Y169: 1.45 | Z169: 0.9709905542 | AA169: 0.9836438026 | AB169: 0.9246543188 | AC169: 0.993311479 | AD169: 0.9998052972 | AE169: 0.9875153897 | AF169: 0.7813497538
A170: 0.998650102 | C170: 145 | D170: 0.0005957000418 | F170: 0 | O170: =IF(K170="","",AVERAGE(L$26:L170)) ->  | P170: =IFERROR(_xlfn.STDEV.S(L$26:L170)/J170^0.5,"") ->  | U170: 145 | W170: 0.9989176995 | Y170: 1.46 | Z170: 0.9715875213 | AA170: 0.9849000249 | AB170: 0.9315234437 | AC170: 0.9933746275 | AD170: 0.9998145687 | AE170: 0.9885286008 | AF170: 0.7886303095
A171: 0.9989176995 | C171: 146 | D171: 0.0005077194036 | F171: 0 | O171: =IF(K171="","",AVERAGE(L$26:L171)) ->  | P171: =IFERROR(_xlfn.STDEV.S(L$26:L171)/J171^0.5,"") ->  | U171: 146 | W171: 0.9991358348 | Y171: 1.47 | Z171: 0.9721702607 | AA171: 0.9860612572 | AB171: 0.9376860638 | AC171: 0.993452287 | AD171: 0.9998238403 | AE171: 0.9894759338 | AF171: 0.7959665803
A172: 0.9991358348 | C172: 147 | D172: 0.0004318573565 | F172: 0 | O172: =IF(K172="","",AVERAGE(L$26:L172)) ->  | P172: =IFERROR(_xlfn.STDEV.S(L$26:L172)/J172^0.5,"") ->  | U172: 147 | W172: 0.9993128621 | Y172: 1.48 | Z172: 0.9727391586 | AA172: 0.987134664 | AB172: 0.9432271706 | AC172: 0.993550335 | AD172: 0.9998331118 | AE172: 0.9903579208 | AF172: 0.8034197358
A173: 0.9993128621 | C173: 148 | D173: 0.0003666164631 | F173: 0 | O173: =IF(K173="","",AVERAGE(L$26:L173)) ->  | P173: =IFERROR(_xlfn.STDEV.S(L$26:L173)/J173^0.5,"") ->  | U173: 148 | W173: 0.9994558913 | Y173: 1.49 | Z173: 0.9732945894 | AA173: 0.9881270836 | AB173: 0.9482562196 | AC173: 0.9936738407 | AD173: 0.9998403231 | AE173: 0.9911756899 | AF173: 0.8109864644
A174: 0.9994558913 | C174: 149 | D174: 0.0003106510669 | F174: 0 | O174: =IF(K174="","",AVERAGE(L$26:L174)) ->  | P174: =IFERROR(_xlfn.STDEV.S(L$26:L174)/J174^0.5,"") ->  | U174: 149 | W174: 0.9995709397 | Y174: 1.5 | Z174: 0.9738369161 | AA174: 0.9890448214 | AB174: 0.9528942655 | AC174: 0.9938266743 | AD174: 0.9998454739 | AE174: 0.9919308854 | AF174: 0.8186492332
A175: 0.9995709397 | C175: 150 | D175: 0.0002627584145 | F175: 0 | O175: =IF(K175="","",AVERAGE(L$26:L175)) ->  | P175: =IFERROR(_xlfn.STDEV.S(L$26:L175)/J175^0.5,"") ->  | U175: 150 | W175: 0.9996630707 | Y175: 1.51 | Z175: 0.9743664908 | AA175: 0.9898938481 | AB175: 0.9572229257 | AC175: 0.9940111135 | AD175: 0.999851655 | AE175: 0.9926256834 | AF175: 0.8263833017
A176: 0.9996630707 | C176: 151 | D176: 0.0002218688988 | F176: 0 | O176: =IF(K176="","",AVERAGE(L$26:L176)) ->  | P176: =IFERROR(_xlfn.STDEV.S(L$26:L176)/J176^0.5,"") ->  | U176: 151 | W176: 0.9997365225 | Y176: 1.52 | Z176: 0.9748836549 | AA176: 0.9906796203 | AB176: 0.9612845903 | AC176: 0.994227519 | AD176: 0.999857836 | AE176: 0.9932628078 | AF176: 0.8341797087
A177: 0.9997365225 | C177: 152 | D177: 0.0001870358212 | F177: 0 | O177: =IF(K177="","",AVERAGE(L$26:L177)) ->  | P177: =IFERROR(_xlfn.STDEV.S(L$26:L177)/J177^0.5,"") ->  | U177: 152 | W177: 0.9997948226 | Y177: 1.53 | Z177: 0.9753887396 | AA177: 0.9914072167 | AB177: 0.965065551 | AC177: 0.9944741481 | AD177: 0.9998629869 | AE177: 0.9938456115 | AF177: 0.8419821548
A178: 0.9997948226 | C178: 153 | D178: 0.0001574249991 | F178: 0 | O178: =IF(K178="","",AVERAGE(L$26:L178)) ->  | P178: =IFERROR(_xlfn.STDEV.S(L$26:L178)/J178^0.5,"") ->  | U178: 153 | W178: 0.9998408914 | Y178: 1.54 | Z178: 0.9758820662 | AA178: 0.9920811742 | AB178: 0.9685343842 | AC178: 0.9947471799 | AD178: 0.9998691679 | AE178: 0.9943781564 | AF178: 0.849733756
A179: 0.9998408914 | C179: 154 | D179: 0.0001323044755 | F179: 0 | O179: =IF(K179="","",AVERAGE(L$26:L179)) ->  | P179: =IFERROR(_xlfn.STDEV.S(L$26:L179)/J179^0.5,"") ->  | U179: 154 | W179: 0.9998771336 | Y179: 1.55 | Z179: 0.9763639463 | AA179: 0.9927056937 | AB179: 0.9716569246 | AC179: 0.9950409416 | AD179: 0.9998743188 | AE179: 0.9948651573 | AF179: 0.8573904858
A180: 0.9998771336 | C180: 155 | D180: 0.0001110345328 | F180: 0 | O180: =IF(K180="","",AVERAGE(L$26:L180)) ->  | P180: =IFERROR(_xlfn.STDEV.S(L$26:L180)/J180^0.5,"") ->  | U180: 155 | W180: 0.9999055189 | Y180: 1.56 | Z180: 0.9768346825 | AA180: 0.9932846252 | AB180: 0.9744331722 | AC180: 0.9953483294 | AD180: 0.9998804998 | AE180: 0.9953119253 | AF180: 0.8649655911
A181: 0.9999055189 | C181: 156 | D181: 9.305815739e-05 | F181: 0 | O181: =IF(K181="","",AVERAGE(L$26:L181)) ->  | P181: =IFERROR(_xlfn.STDEV.S(L$26:L181)/J181^0.5,"") ->  | U181: 156 | W181: 0.999927652 | Y181: 1.57 | Z181: 0.9772945682 | AA181: 0.9938215848 | AB181: 0.9768977141 | AC181: 0.9956614145 | AD181: 0.9998866809 | AE181: 0.9957235703 | AF181: 0.8724797215
A182: 0.999927652 | C182: 157 | D182: 7.789205951e-05 | F182: 0 | O182: =IF(K182="","",AVERAGE(L$26:L182)) ->  | P182: =IFERROR(_xlfn.STDEV.S(L$26:L182)/J182^0.5,"") ->  | U182: 157 | W182: 0.9999448335 | Y182: 1.58 | Z182: 0.9777438881 | AA182: 0.9943198856 | AB182: 0.9791260514 | AC182: 0.9959722082 | AD182: 0.9998908016 | AE182: 0.9961042024 | AF182: 0.879962293
A183: 0.9999448335 | C183: 158 | D183: 6.511831479e-05 | F183: 0 | O183: =IF(K183="","",AVERAGE(L$26:L183)) ->  | P183: =IFERROR(_xlfn.STDEV.S(L$26:L183)/J183^0.5,"") ->  | U183: 158 | W183: 0.999958112 | Y183: 1.59 | Z183: 0.9781829186 | AA183: 0.9947825851 | AB183: 0.9811951615 | AC183: 0.9962734616 | AD183: 0.9998949223 | AE183: 0.9964565862 | AF183: 0.8873864221
A184: 0.999958112 | C184: 159 | D184: 5.437666465e-05 | F184: 0 | O184: =IF(K184="","",AVERAGE(L$26:L184)) ->  | P184: =IFERROR(_xlfn.STDEV.S(L$26:L184)/J184^0.5,"") ->  | U184: 159 | W184: 0.9999683288 | Y184: 1.6 | Z184: 0.9786119281 | AA184: 0.9952123956 | AB184: 0.9831653609 | AC184: 0.9965593793 | AD184: 0.9998980128 | AE184: 0.9967817934 | AF184: 0.8947425633
A185: 0.9999683288 | C185: 160 | D185: 4.535748729e-05 | F185: 0 | O185: =IF(K185="","",AVERAGE(L$26:L185)) ->  | P185: =IFERROR(_xlfn.STDEV.S(L$26:L185)/J185^0.5,"") ->  | U185: 160 | W185: 0.9999761548 | Y185: 1.61 | Z185: 0.9790311769 | AA185: 0.9956117987 | AB185: 0.9850598483 | AC185: 0.9968261211 | AD185: 0.9999011033 | AE185: 0.9970795743 | AF185: 0.9020073396
A186: 0.9999761548 | C186: =C185+OFFSET(W$23,,B$11-1) -> 161 | D186: 3.779543279e-05 | F186: 0 | I186: =IF(L186<>"",0,"") ->  | J186: =IF(B$9>J185,J185+1,"") ->  | K186: =IFERROR(( MOD(( MOD( MOD( 999999999999989, MOD( PM_Index*2499997 +$J186*1800451, 7450589 ) * 4658 + 7450581 ) * 383, 99991 ) * 7440893 + MOD( MOD( 999999999999989, MOD( PM_Index*2246527 +$J186*2399993, 7450987 ) * 7580 + 7560584 ) * 17669, 7440893 )) * 1343, 4294967296 ) + 0.5 ) / 4294967296,"") ->  | M186: =IF(L186="",NA(),L186) ->  | O186: =IF(K186="","",AVERAGE(L$26:L186)) ->  | P186: =IFERROR(_xlfn.STDEV.S(L$26:L186)/J186^0.5,"") ->  | U186: 161 | W186: 0.999982123 | Y186: 1.62 | Z186: 0.979440918 | AA186: 0.9959829483 | AB186: 0.9868817872 | AC186: 0.9970720647 | AD186: 0.999905224 | AE186: 0.997348728 | AF186: 0.909142179
A187: 0.999982123 | C187: 162 | D187: 3.146370144e-05 | F187: 0 | O187: =IF(K187="","",AVERAGE(L$26:L187)) ->  | P187: =IFERROR(_xlfn.STDEV.S(L$26:L187)/J187^0.5,"") ->  | U187: 162 | W187: 0.9999866543 | Y187: 1.63 | Z187: 0.9798413968 | AA187: 0.9963277714 | AB187: 0.98860355 | AC187: 0.9972977972 | AD187: 0.9999093447 | AE187: 0.9975879811 | AF187: 0.9160788988
A188: 0.9999866543 | C188: 163 | D188: 2.616893421e-05 | F188: 0 | O188: =IF(K188="","",AVERAGE(L$26:L188)) ->  | P188: =IFERROR(_xlfn.STDEV.S(L$26:L188)/J188^0.5,"") ->  | U188: 163 | W188: 0.9999900792 | Y188: 1.64 | Z188: 0.9802328517 | AA188: 0.9966479556 | AB188: 0.9901764195 | AC188: 0.9975058069 | AD188: 0.9999134654 | AE188: 0.9977968662 | AF188: 0.9227450304
A189: 0.9999900792 | C189: 164 | D189: 2.174667723e-05 | F189: 0 | O189: =IF(K189="","",AVERAGE(L$26:L189)) ->  | P189: =IFERROR(_xlfn.STDEV.S(L$26:L189)/J189^0.5,"") ->  | U189: 164 | W189: 0.9999926566 | Y189: 1.65 | Z189: 0.9806155142 | AA189: 0.9969450586 | AB189: 0.9915423991 | AC189: 0.997699901 | AD189: 0.9999175861 | AE189: 0.9979759232 | AF189: 0.9290550531
A190: 0.9999926566 | C190: 165 | D190: 1.805737797e-05 | F190: 0 | O190: =IF(K190="","",AVERAGE(L$26:L190)) ->  | P190: =IFERROR(_xlfn.STDEV.S(L$26:L190)/J190^0.5,"") ->  | U190: 165 | W190: 0.9999945875 | Y190: 1.66 | Z190: 0.9809896091 | AA190: 0.9972204445 | AB190: 0.9926818754 | AC190: 0.997884474 | AD190: 0.9999217068 | AE190: 0.9981269011 | AF190: 0.9349692262
A191: 0.9999945875 | C191: 166 | D191: 1.498286874e-05 | F191: 0 | O191: =IF(K191="","",AVERAGE(L$26:L191)) ->  | P191: =IFERROR(_xlfn.STDEV.S(L$26:L191)/J191^0.5,"") ->  | U191: 166 | W191: 0.9999960276 | Y191: 1.67 | Z191: 0.9813553548 | AA191: 0.9974753663 | AB191: 0.9936237413 | AC191: 0.9980637485 | AD191: 0.999928918 | AE191: 0.9982524836 | AF191: 0.9404349515
A192: 0.9999960276 | C192: 167 | D192: 1.242329257e-05 | F192: 0 | O192: =IF(K192="","",AVERAGE(L$26:L192)) ->  | P192: =IFERROR(_xlfn.STDEV.S(L$26:L192)/J192^0.5,"") ->  | U192: 167 | W192: 0.999997097 | Y192: 1.68 | Z192: 0.9817129634 | AA192: 0.9977109731 | AB192: 0.9944274696 | AC192: 0.9982411112 | AD192: 0.9999350991 | AE192: 0.9983560154 | AF192: 0.9454265144
A193: 0.999997097 | C193: 168 | D193: 1.029442756e-05 | F193: 0 | O193: =IF(K193="","",AVERAGE(L$26:L193)) ->  | P193: =IFERROR(_xlfn.STDEV.S(L$26:L193)/J193^0.5,"") ->  | U193: 168 | W193: 0.9999978875 | Y193: 1.69 | Z193: 0.982062641 | AA193: 0.9979283938 | AB193: 0.9951360834 | AC193: 0.9984186104 | AD193: 0.9999412801 | AE193: 0.9984415585 | AF193: 0.949929499
A194: 0.9999978875 | C194: 169 | D194: 8.52536725e-06 | F194: 0 | O194: =IF(K194="","",AVERAGE(L$26:L194)) ->  | P194: =IFERROR(_xlfn.STDEV.S(L$26:L194)/J194^0.5,"") ->  | U194: 169 | W194: 0.9999984694 | Y194: 1.7 | Z194: 0.9824045879 | AA194: 0.9981286951 | AB194: 0.9957637127 | AC194: 0.9985966804 | AD194: 0.9999454008 | AE194: 0.9985139485 | AF194: 0.9539598797
A195: 0.9999984694 | C195: 170 | D195: 7.056517402e-06 | F195: 0 | O195: =IF(K195="","",AVERAGE(L$26:L195)) ->  | P195: =IFERROR(_xlfn.STDEV.S(L$26:L195)/J195^0.5,"") ->  | U195: 170 | W195: 0.9999988957 | Y195: 1.71 | Z195: 0.9827389985 | AA195: 0.9983129079 | AB195: 0.9963084596 | AC195: 0.9987741578 | AD195: 0.9999515818 | AE195: 0.9985786015 | AF195: 0.9575511634
A196: 0.9999988957 | C196: 171 | D196: 5.837871827e-06 | F196: 0 | O196: =IF(K196="","",AVERAGE(L$26:L196)) ->  | P196: =IFERROR(_xlfn.STDEV.S(L$26:L196)/J196^0.5,"") ->  | U196: 171 | W196: 0.9999992067 | Y196: 1.72 | Z196: 0.9830660619 | AA196: 0.9984819964 | AB196: 0.9967806579 | AC196: 0.9989485598 | AD196: 0.9999577629 | AE196: 0.9986413202 | AF196: 0.9607555586
A197: 0.9999992067 | C197: 172 | D197: 4.827533374e-06 | F197: 0 | O197: =IF(K197="","",AVERAGE(L$26:L197)) ->  | P197: =IFERROR(_xlfn.STDEV.S(L$26:L197)/J197^0.5,"") ->  | U197: 172 | W197: 0.9999994325 | Y197: 1.73 | Z197: 0.9833859619 | AA197: 0.9986368873 | AB197: 0.9972064588 | AC197: 0.999116538 | AD197: 0.9999649741 | AE197: 0.9987082299 | AF197: 0.9636244945
A198: 0.9999994325 | C198: 173 | D198: 3.990449009e-06 | F198: 0 | O198: =IF(K198="","",AVERAGE(L$26:L198)) ->  | P198: =IFERROR(_xlfn.STDEV.S(L$26:L198)/J198^0.5,"") ->  | U198: 173 | W198: 0.9999995958 | Y198: 1.74 | Z198: 0.983698877 | AA198: 0.9987784699 | AB198: 0.9976143336 | AC198: 0.9992744188 | AD198: 0.9999690948 | AE198: 0.9987857135 | AF198: 0.9662279073
A199: 0.9999995958 | C199: 174 | D199: 3.29733109e-06 | F199: 0 | O199: =IF(K199="","",AVERAGE(L$26:L199)) ->  | P199: =IFERROR(_xlfn.STDEV.S(L$26:L199)/J199^0.5,"") ->  | U199: 174 | W199: 0.9999997133 | Y199: 1.75 | Z199: 0.9840049808 | AA199: 0.9989076278 | AB199: 0.9980122961 | AC199: 0.9994187447 | AD199: 0.9999732155 | AE199: 0.9988786632 | AF199: 0.9686222912
A200: 0.9999997133 | C200: 175 | D200: 2.723739867e-06 | F200: 0 | O200: =IF(K200="","",AVERAGE(L$26:L200)) ->  | P200: =IFERROR(_xlfn.STDEV.S(L$26:L200)/J200^0.5,"") ->  | U200: 175 | W200: 0.9999997976 | Y200: 1.76 | Z200: 0.984304442 | AA200: 0.9990251995 | AB200: 0.9983849511 | AC200: 0.999546746 | AD200: 0.999976306 | AE200: 0.9989887313 | AF200: 0.9708619977
A201: 0.9999997976 | C201: 176 | D201: 2.249305067e-06 | F201: 0 | O201: =IF(K201="","",AVERAGE(L$26:L201)) ->  | P201: =IFERROR(_xlfn.STDEV.S(L$26:L201)/J201^0.5,"") ->  | U201: 176 | W201: 0.9999998577 | Y201: 1.77 | Z201: 0.9845974247 | AA201: 0.9991320151 | AB201: 0.9987061471 | AC201: 0.9996566775 | AD201: 0.9999793965 | AE201: 0.9991145797 | AF201: 0.9729737153
A202: 0.9999998577 | C202: 177 | D202: 1.857067005e-06 | F202: 0 | O202: =IF(K202="","",AVERAGE(L$26:L202)) ->  | P202: =IFERROR(_xlfn.STDEV.S(L$26:L202)/J202^0.5,"") ->  | U202: 177 | W202: 0.9999999004 | Y202: 1.78 | Z202: 0.9848840884 | AA202: 0.9992288759 | AB202: 0.9989613325 | AC202: 0.9997479494 | AD202: 0.9999804267 | AE202: 0.9992521305 | AF202: 0.9749691327
A203: 0.9999999004 | C203: 178 | D203: 1.532920097e-06 | F203: 0 | O203: =IF(K203="","",AVERAGE(L$26:L203)) ->  | P203: =IFERROR(_xlfn.STDEV.S(L$26:L203)/J203^0.5,"") ->  | U203: 178 | W203: 0.9999999305 | Y203: 1.79 | Z203: 0.9851645881 | AA203: 0.9993165599 | AB203: 0.9991551468 | AC203: 0.9998210806 | AD203: 0.9999814569 | AE203: 0.9993947185 | AF203: 0.9768521459
A204: 0.9999999305 | C204: 179 | D204: 1.265143822e-06 | F204: 0 | O204: =IF(K204="","",AVERAGE(L$26:L204)) ->  | P204: =IFERROR(_xlfn.STDEV.S(L$26:L204)/J204^0.5,"") ->  | U204: 179 | W204: 0.9999999518 | Y204: 1.8 | Z204: 0.9854390746 | AA204: 0.9993957947 | AB204: 0.9993048836 | AC204: 0.9998775212 | AD204: 0.9999814569 | AE204: 0.9995332445 | AF204: 0.9786219757
... 21 more rows

Sheet PopMean Ws
B1: Worksheet: Computing 90% Confidence Intervals with Small Samples
B2: The "t-stat" is used for small samples. Note that two excel formulas are introduced here that give the same answers as the steps in the book: VAR() and TINV(). This will slightly simplify the calculation. You can use this spreadsheet to compute ranges for larger samples, too. Just add however many rows you need and don't forget to change the references in the cells to capture all the new rows. See how close the answers would be if you just used the "Mathless" table. This sheet will also calculate an estimate of the underlying distribution using a t-distribution. One will notice from the previous example that this may or ay not be a good assumption.
B3: 90% Confidence Interval Calculations (by steps described in book)
B4: Average of Sample Values (step 1.a in book) | D4: =AVERAGE(C18:C117) -> 8.446666667
B5: Population Variance | D5: =VAR(C18:C117) -> 5.621238095
B6: SD of the estimate of the mean | D6: =SQRT(D5/COUNT(C18:C117)) -> 0.6121676293
B7: t-stat using Excel's "Tinv()" formula (same answer as step 3 in book) | D7: =TINV(0.1,COUNT(C18:C117)-1) -> 1.761310136
B8: Sample error (step 4 in book) | D8: =D7*D6 -> 1.07821705
B9: SD | D9: =_xlfn.STDEV.S(C18:C117) -> 2.370915033
B10: Sample size | D10: =COUNT(C18:C1001) -> 15
B12: Computing bounds for 90% CI (step 5 in book)
B13: Upper bound | D13: =D4+D8 -> 9.524883717
B14: Lower bound | D14: =D4-D8 -> 7.368449616
B16: Data | D16: Chart Data | F16: Std Error for Estimate of Mean (Normalized) | G16: cpf for Sample | H16: Incremental P | I16: Sample | J16: Error of the mean | K16: Confidence Interval Bars | M16: Estimate of Distribution | N16: Estimate of Distribution | O16: Error of the Mean
B17: Data Point | C17: Sample Value | D17: Min | E17: =MIN(C18:C117) -> 3.2 | F17: -4.2 | G17: =NORMDIST(F17+0.05,0,1,1) -> 1.662376373e-05 | K17: =D14 -> 7.368449616 | L17: 0 | M17: =E17-(E19*100) -> -2.425
A18: 0 | B18: 1 | C18: 3.2 | D18: Max | E18: =MAX(C18:C117) -> 12.2 | F18: -4.1 | G18: =NORMDIST(F18+0.05,0,1,1) -> 2.560881647e-05 | H18: =(G18-G17) -> 8.985052744e-06 | I18: =D$4+F18*D$6 -> 5.936779387 | K18: =D14 -> 7.368449616 | L18: =_xlfn.T.DIST(((K18+2*E19)-D$4)/D$6,D$10-1,1)-_xlfn.T.DIST((K18-D$4)/D$6,D$10-1,1) -> 0.01849708662 | M18: =M17+$E$19 -> -2.36875 | N18: =_xlfn.T.DIST((M19-D$4)/D$9,D$10-1,1)-_xlfn.T.DIST((M17-D$4)/D$9,D$10-1,1) -> 2.008248871e-05 | O18: =_xlfn.T.DIST((M19-D$4)/D$6,D$10-1,1)-_xlfn.T.DIST((M17-D$4)/D$6,D$10-1,1) -> 4.01170102e-12
A19: 0 | B19: 2 | C19: 5.8 | D19: Increment | E19: =(E18-E17)/160 -> 0.05625 | F19: -4 | G19: =NORMDIST(F19+0.05,0,1,1) -> 3.90755966e-05 | H19: =(G19-G18) -> 1.346678012e-05 | I19: 5.99799615 | J19: =_xlfn.T.DIST((I19-D$4)/D$6,D$10-1,1)-_xlfn.T.DIST((I18-D$4)/D$6,D$10-1,1) -> 0.0001169583462 | K19: =D13 -> 9.524883717 | L19: 0 | M19: -2.3125 | N19: =_xlfn.T.DIST((M20-D$4)/D$9,D$10-1,1)-_xlfn.T.DIST((M18-D$4)/D$9,D$10-1,1) -> 2.104176919e-05 | O19: =_xlfn.T.DIST((M20-D$4)/D$6,D$10-1,1)-_xlfn.T.DIST((M18-D$4)/D$6,D$10-1,1) -> 4.323510013e-12
A20: 0 | B20: 3 | C20: 6.5 | F20: -3.9 | G20: =NORMDIST(F20+0.05,0,1,1) -> 5.905891242e-05 | H20: =(G20-G19) -> 1.998331582e-05 | I20: 6.059212912 | J20: 0.0001428526613 | K20: =D13 -> 9.524883717 | L20: =L18 -> 0.01849708662 | M20: -2.25625 | N20: 2.204789681e-05 | O20: 4.661224337e-12
A21: 0 | B21: 4 | C21: 6.5 | F21: -3.8 | G21: 8.84172852e-05 | H21: =(G21-G20) -> 2.935837278e-05 | I21: 6.120429675 | J21: 0.000174527214 | M21: -2.2 | N21: 2.310318541e-05 | O21: 5.02713544e-12
A22: 0 | B22: 5 | C22: 7.1 | F22: -3.7 | G22: 0.0001311201544 | H22: =(G22-G21) -> 4.270286922e-05 | I22: 6.181646438 | J22: =_xlfn.T.DIST((I22-D$4)/D$6,D$10-1,1)-_xlfn.T.DIST((I21-D$4)/D$6,D$10-1,1) -> 0.0002132558424 | M22: -2.14375 | N22: 2.421006286e-05 | O22: 5.423749807e-12
A23: 0 | B23: 6 | C23: 7.5 | F23: -3.6 | G23: =NORMDIST(F23+0.05,0,1,1) -> 0.0001926155756 | H23: 6.149542122e-05 | I23: 6.242863201 | J23: 0.000260580695 | M23: -2.0875 | N23: 2.537107654e-05 | O23: 5.853810311e-12
A24: 0 | B24: 7 | C24: 8.4 | F24: -3.5 | G24: 0.0002802932768 | H24: 8.767770118e-05 | I24: =D$4+F24*D$6 -> 6.304079964 | J24: 0.0003183630433 | M24: -2.03125 | N24: 2.658889907e-05 | O24: 6.320319784e-12
A25: 0 | B25: 8 | C25: 8.9 | F25: -3.4 | G25: =NORMDIST(F25+0.05,0,1,1) -> 0.0004040578019 | H25: 0.000123764525 | I25: 6.365296727 | J25: 0.0003888414264 | M25: -1.975 | N25: 2.786633435e-05 | O25: 6.826567077e-12
A26: 0 | B26: 9 | C26: 9 | F26: -3.3 | G26: 0.0005770250424 | H26: 0.0001729672405 | I26: 6.42651349 | J26: 0.0004746972839 | M26: -1.91875 | N26: 2.920632384e-05 | O26: 7.376155872e-12
A27: 0 | B27: 10 | C27: 9.5 | F27: -3.2 | G27: 0.0008163523128 | H27: 0.0002393272704 | I27: 6.487730253 | J27: 0.0005791278195 | M27: -1.8625 | N27: 3.061195311e-05 | O27: 7.973036552e-12
A28: 0 | B28: 11 | C28: 10.1 | F28: -3.1 | G28: 0.001144206831 | H28: 0.0003278545182 | I28: 6.548947016 | J28: 0.0007059252265 | M28: -1.80625 | N28: 3.208645867e-05 | O28: 8.621541477e-12
A29: 0 | B29: 12 | C29: 10.2 | F29: -3 | G29: 0.001588869647 | H29: =(G29-G28) -> 0.0004446628163 | I29: 6.610163779 | J29: 0.0008595605676 | M29: -1.75 | N29: 3.363323521e-05 | O29: 9.326424045e-12
A30: 0 | B30: 13 | C30: 10.5 | F30: -2.9 | G30: 0.002185961455 | H30: 0.0005970918075 | I30: 6.671380542 | J30: 0.00104526947 | M30: -1.69375 | N30: 3.5255843e-05 | O30: 1.009290196e-11
A31: 0 | B31: 14 | C31: 11.3 | F31: -2.8 | G31: 0.002979763235 | H31: 0.0007938017801 | I31: 6.732597305 | J31: 0.001269135345 | M31: -1.6375 | N31: 3.695801574e-05 | O31: 1.092670519e-11
A32: 0 | B32: 15 | C32: 12.2 | F32: -2.7 | G32: 0.004024588543 | H32: 0.001044825308 | I32: 6.793814068 | J32: 0.001538164049 | M32: -1.58125 | N32: 3.874366868e-05 | O32: 1.183412917e-11
A33: 0 | B33: 16 | F33: -2.6 | G33: 0.005386145954 | H33: 0.001361557411 | I33: 6.855030831 | J33: 0.001860341745 | M33: -1.525 | N33: 4.061690717e-05 | O33: 1.282209377e-11
A34: 0 | B34: 17 | F34: -2.5 | G34: 0.007142810735 | H34: 0.001756664781 | I34: 6.916247593 | J34: 0.002244665321 | M34: -1.46875 | N34: 4.258203546e-05 | O34: 1.389820884e-11
A35: 0 | B35: 18 | F35: -2.4 | G35: 0.009386705535 | H35: 0.0022438948 | I35: 6.977464356 | J35: 0.002701132076 | M35: -1.4125 | N35: 4.464356602e-05 | O35: 1.507084694e-11
A36: 0 | B36: 19 | F36: -2.3 | G36: 0.01222447266 | H36: 0.00283776712 | I36: 7.038681119 | J36: 0.003240672866 | M36: -1.35625 | N36: 4.680622909e-05 | O36: 1.634922415e-11
A37: 0 | B37: 20 | F37: -2.2 | G37: 0.01577760739 | H37: 0.003553134736 | I37: 7.099897882 | J37: 0.00387501066 | M37: -1.3 | N37: 4.907498282e-05 | O37: 1.774348996e-11
A38: 0 | B38: 21 | F38: -2.1 | G38: 0.02018221541 | H38: 0.004404608015 | I38: 7.161114645 | J38: 0.004616425079 | M38: -1.24375 | N38: 5.145502364e-05 | O38: 1.926482721e-11
A39: 0 | B39: 22 | F39: -2 | G39: 0.02558805952 | H39: 0.005405844116 | I39: 7.222331408 | J39: 0.005477403457 | M39: -1.1875 | N39: 5.395179722e-05 | O39: 2.092556334e-11
A40: 0 | B40: 23 | F40: -1.9 | G40: 0.0321567748 | H40: 0.006568715274 | I40: 7.283548171 | J40: 0.006470161043 | M40: -1.13125 | N40: 5.657100976e-05 | O40: 2.273929427e-11
A41: 0 | B41: 24 | F41: -1.8 | G41: 0.04005915686 | H41: 0.007902382068 | I41: 7.344764934 | J41: 0.00760601776 | M41: -1.075 | N41: 5.931863984e-05 | O41: 2.472102241e-11
A42: 0 | B42: 25 | F42: -1.7 | G42: 0.04947146803 | H42: 0.00941231117 | I42: 7.405981697 | J42: 0.008894627308 | M42: -1.01875 | N42: 6.220095061e-05 | O42: 2.688731044e-11
A43: 0 | B43: 26 | F43: -1.6 | G43: 0.060570758 | H43: 0.01109928997 | I43: 7.46719846 | J43: 0.0103430666 | M43: -0.9625 | N43: 6.522450266e-05 | O43: 2.925645294e-11
A44: 0 | B44: 27 | F44: -1.5 | G44: 0.07352925961 | H44: 0.01295850161 | I44: 7.528415223 | J44: 0.01195480989 | M44: -0.90625 | N44: 6.839616715e-05 | O44: 3.184866784e-11
A45: 0 | B45: 28 | F45: -1.4 | G45: 0.08850799144 | H45: 0.01497873183 | I45: 7.589631986 | J45: 0.0137286318 | M45: -0.85 | N45: 7.17231397e-05 | O45: 3.468631016e-11
A46: 0 | B46: 29 | F46: -1.3 | G46: 0.1056497737 | H46: 0.01714178223 | I46: 7.650848749 | J46: 0.01565750543 | M46: -0.79375 | N46: 7.52129546e-05 | O46: 3.779411086e-11
A47: 0 | B47: 30 | F47: -1.2 | G47: 0.1250719356 | H47: 0.01942216197 | I47: 7.712065512 | J47: 0.01772758413 | M47: -0.7375 | N47: 7.887349969e-05 | O47: 4.119944378e-11
A48: 0 | B48: 31 | F48: -1.1 | G48: 0.1468590564 | H48: 0.02178712074 | I48: 7.773282274 | J48: 0.01991737408 | M48: -0.68125 | N48: 8.271303174e-05 | O48: 4.493262422e-11
A49: 0 | B49: 32 | F49: -1 | G49: 0.1710561263 | H49: 0.02419706993 | I49: 7.834499037 | J49: 0.0221972172 | M49: -0.625 | N49: 8.674019241e-05 | O49: 4.902724303e-11
A50: 0 | B50: 33 | F50: -0.9 | G50: 0.1976625431 | H50: 0.02660641681 | I50: =D$4+F50*D$6 -> 7.8957158 | J50: 0.02452920457 | M50: -0.56875 | N50: 9.09640248e-05 | O50: 5.35205408e-11
A51: 0 | B51: 34 | F51: -0.8 | G51: 0.2266273524 | H51: 0.02896480925 | I51: 7.956932563 | J51: =_xlfn.T.DIST((I51-D$4)/D$6,D$10-1,1)-_xlfn.T.DIST((I50-D$4)/D$6,D$10-1,1) -> 0.02686762679 | M51: -0.5125 | N51: 9.539399052e-05 | O51: 5.845382696e-11
A52: 0 | B52: 35 | F52: -0.7 | G52: 0.2578461108 | H52: 0.03121875843 | I52: 8.018149326 | J52: 0.0291600368 | M52: -0.45625 | N52: 0.0001000399875 | O52: 6.387294975e-11
A53: 0 | B53: 36 | F53: -0.6 | G53: 0.2911596868 | H53: 0.03331357598 | I53: 8.079366089 | J53: 0.03134895267 | M53: -0.4 | N53: 0.0001049123681 | O53: 6.982882328e-11
A54: 0 | B54: 37 | F54: -0.5 | G54: 0.3263552203 | H54: 0.0351955335 | I54: 8.140582852 | J54: 0.03337416558 | M54: -0.34375 | N54: 0.0001100219585 | O54: 7.637801919e-11
A55: 0 | B55: 38 | F55: -0.4 | G55: 0.3631693488 | H55: 0.03681412854 | I55: 8.201799615 | J55: 0.03517554781 | M55: -0.2875 | N55: 0.0001153800777 | O55: 8.358343104e-11
A56: 0 | B56: 39 | F56: -0.3 | G56: 0.4012936743 | H56: 0.03812432549 | I56: 8.263016378 | J56: 0.03669618564 | M56: -0.23125 | N56: 0.0001209985582 | O56: 9.151502106e-11
A57: 0 | B57: 40 | F57: -0.2 | G57: 0.4403823076 | H57: 0.03908863331 | I57: 8.324233141 | J57: 0.03788560387 | M57: -0.175 | N57: 0.0001268897666 | O57: 1.002506597e-10
A58: 0 | B58: 41 | F58: -0.1 | G58: 0.4800611942 | H58: 0.03967888653 | I58: 8.385449904 | J58: 0.03870281162 | M58: -0.11875 | N58: 0.000133066625 | O58: 1.098770702e-10
A59: 0 | B59: 42 | F59: 0 | G59: 0.5199388058 | H59: 0.03987761168 | I59: 8.446666667 | J59: 0.03911889293 | M59: -0.0625 | N59: 0.0001395426333 | O59: 1.204908926e-10
A60: 0 | B60: 43 | F60: 0.1 | G60: 0.5596176924 | H60: 0.03967888653 | I60: 8.50788343 | J60: 0.03911889293 | M60: -0.00625 | N60: 0.0001463318921 | O60: 1.321998816e-10
A61: 0 | B61: 44 | F61: 0.2 | G61: 0.5987063257 | H61: 0.03908863331 | I61: 8.569100193 | J61: 0.03870281162 | M61: 0.05 | N61: 0.0001534491257 | O61: 1.451242574e-10
A62: 0 | B62: 45 | F62: 0.3 | G62: 0.6368306512 | H62: 0.03812432549 | I62: 8.630316955 | J62: 0.03788560387 | M62: 0.10625 | N62: 0.0001609097063 | O62: 1.593982297e-10
A63: 0 | B63: 46 | F63: 0.4 | G63: 0.6736447797 | H63: 0.03681412854 | I63: 8.691533718 | J63: 0.03669618564 | M63: 0.1625 | N63: 0.000168729679 | O63: 1.751717175e-10
A64: 0 | B64: 47 | F64: 0.5 | G64: 0.7088403132 | H64: 0.0351955335 | I64: 8.752750481 | J64: 0.03517554781 | M64: 0.21875 | N64: 0.0001769257866 | O64: 1.926122922e-10
A65: 0 | B65: 48 | F65: 0.6 | G65: 0.7421538892 | H65: 0.03331357598 | I65: 8.813967244 | J65: 0.03337416558 | M65: 0.275 | N65: 0.0001855154958 | O65: 2.11907373e-10
A66: 0 | B66: 49 | F66: 0.7 | G66: 0.7733726476 | H66: 0.03121875843 | I66: 8.875184007 | J66: 0.03134895267 | M66: 0.33125 | N66: 0.0001945170236 | O66: 2.33266711e-10
A67: 0 | B67: 50 | F67: 0.8 | G67: 0.8023374569 | H67: 0.02896480925 | I67: 8.93640077 | J67: 0.0291600368 | M67: 0.3875 | N67: 0.0002039493643 | O67: 2.569252002e-10
A68: 0 | B68: 51 | F68: 0.9 | G68: 0.8289438737 | H68: 0.02660641681 | I68: 8.997617533 | J68: 0.02686762679 | M68: 0.44375 | N68: 0.0002138323175 | O68: 2.831460608e-10
A69: 0 | B69: 52 | F69: 1 | G69: 0.8531409436 | H69: 0.02419706993 | I69: 9.058834296 | J69: 0.02452920457 | M69: 0.5 | N69: 0.0002241865158 | O69: 3.122244482e-10
A70: 0 | B70: 53 | F70: 1.1 | G70: 0.8749280644 | H70: 0.02178712074 | I70: 9.120051059 | J70: 0.0221972172 | M70: 0.55625 | N70: 0.0002350334537 | O70: 3.444915448e-10
A71: 0 | B71: 54 | F71: 1.2 | G71: 0.8943502263 | H71: 0.01942216197 | I71: 9.181267822 | J71: 0.01991737408 | M71: 0.6125 | N71: 0.0002463955165 | O71: 3.803192048e-10
A72: 0 | B72: 55 | F72: 1.3 | G72: 0.9114920086 | H72: 0.01714178223 | I72: 9.242484585 | J72: 0.01772758413 | M72: 0.66875 | N72: 0.0002582960102 | O72: 4.201252297e-10
A73: 0 | B73: 56 | F73: 1.4 | G73: 0.9264707404 | H73: 0.01497873183 | I73: 9.303701348 | J73: 0.01565750543 | M73: 0.725 | N73: 0.0002707591911 | O73: 4.643793637e-10
A74: 0 | B74: 57 | F74: 1.5 | G74: 0.939429242 | H74: 0.01295850161 | I74: 9.364918111 | J74: 0.0137286318 | M74: 0.78125 | N74: 0.0002838102962 | O74: 5.136101132e-10
A75: 0 | B75: 58 | F75: 1.6 | G75: 0.950528532 | H75: 0.01109928997 | I75: 9.426134874 | J75: 0.01195480989 | M75: 0.8375 | N75: 0.0002974755737 | O75: 5.68412509e-10
A76: 0 | B76: 59 | F76: 1.7 | G76: 0.9599408431 | H76: 0.00941231117 | I76: 9.487351636 | J76: 0.0103430666 | M76: 0.89375 | N76: 0.0003117823136 | O76: 6.294569475e-10
A77: 0 | B77: 60 | F77: 1.8 | G77: 0.9678432252 | H77: 0.007902382068 | I77: 9.548568399 | J77: 0.008894627308 | M77: 0.95 | N77: 0.0003267588787 | O77: 6.974992694e-10
A78: 0 | B78: 61 | F78: 1.9 | G78: 0.9744119405 | H78: 0.006568715274 | I78: 9.609785162 | J78: 0.00760601776 | M78: 1.00625 | N78: 0.0003424347354 | O78: 7.733922565e-10
A79: 0 | B79: 62 | F79: 2 | G79: 0.9798177846 | H79: 0.005405844116 | I79: 9.671001925 | J79: 0.006470161042 | M79: 1.0625 | N79: 0.0003588404846 | O79: 8.580987575e-10
A80: 0 | B80: 63 | F80: 2.1 | G80: 0.9842223926 | H80: 0.004404608015 | I80: 9.732218688 | J80: 0.005477403457 | M80: 1.11875 | N80: 0.0003760078926 | O80: 9.527066831e-10
A81: 0 | B81: 64 | F81: 2.2 | G81: 0.9877755273 | H81: 0.003553134736 | I81: 9.793435451 | J81: 0.004616425079 | M81: 1.175 | N81: 0.0003939699215 | O81: 1.058446152e-09
A82: 0 | B82: 65 | F82: 2.3 | G82: =NORMDIST(F82+0.05,0,1,1) -> 0.9906132945 | H82: 0.00283776712 | I82: =D$4+F82*D$6 -> 9.854652214 | J82: 0.00387501066 | M82: =M81+$E$19 -> 1.23125 | N82: 0.0004127607595 | O82: 1.176709111e-09
A83: 0 | B83: 66 | F83: 2.4 | G83: 0.9928571893 | H83: =(G83-G82) -> 0.0022438948 | I83: 9.915868977 | J83: =_xlfn.T.DIST((I83-D$4)/D$6,D$10-1,1)-_xlfn.T.DIST((I82-D$4)/D$6,D$10-1,1) -> 0.003240672866 | M83: 1.2875 | N83: =_xlfn.T.DIST((M84-D$4)/D$9,D$10-1,1)-_xlfn.T.DIST((M82-D$4)/D$9,D$10-1,1) -> 0.0004324158505 | O83: =_xlfn.T.DIST((M84-D$4)/D$6,D$10-1,1)-_xlfn.T.DIST((M82-D$4)/D$6,D$10-1,1) -> 1.3090718e-09
A84: 0 | B84: 67 | F84: 2.5 | G84: 0.994613854 | H84: 0.001756664781 | I84: 9.97708574 | J84: 0.002701132076 | M84: 1.34375 | N84: 0.0004529719235 | O84: 1.4573205e-09
A85: 0 | B85: 68 | F85: 2.6 | G85: 0.9959754115 | H85: 0.001361557411 | I85: 10.0383025 | J85: 0.002244665321 | M85: 1.4 | N85: 0.0004744670211 | O85: 1.623481072e-09
A86: 0 | B86: 69 | F86: 2.7 | G86: 0.9970202368 | H86: 0.001044825308 | I86: 10.09951927 | J86: 0.001860341745 | M86: 1.45625 | N86: 0.0004969405269 | O86: 1.80985285e-09
A87: 0 | B87: 70 | F87: 2.8 | G87: 0.9978140385 | H87: 0.0007938017801 | I87: 10.16073603 | J87: 0.001538164049 | M87: 1.5125 | N87: 0.0005204331921 | O87: 2.019047593e-09
A88: 0 | B88: 71 | F88: 2.9 | G88: 0.9984111304 | H88: 0.0005970918075 | I88: 10.22195279 | J88: 0.001269135345 | M88: 1.56875 | N88: 0.0005449871613 | O88: 2.25403426e-09
A89: 0 | B89: 72 | F89: 3 | G89: 0.9988557932 | H89: 0.0004446628163 | I89: 10.28316955 | J89: 0.00104526947 | M89: 1.625 | N89: 0.0005706459958 | O89: 2.518190543e-09
A90: 0 | B90: 73 | F90: 3.1 | G90: 0.9991836477 | H90: 0.0003278545182 | I90: 10.34438632 | J90: 0.0008595605676 | M90: 1.68125 | N90: 0.0005974546967 | O90: 2.815362207e-09
A91: 0 | B91: 74 | F91: 3.2 | G91: 0.999422975 | H91: 0.0002393272704 | I91: 10.40560308 | J91: 0.0007059252265 | M91: 1.7375 | N91: 0.0006254597253 | O91: 3.149931491e-09
A92: 0 | B92: 75 | F92: 3.3 | G92: 0.9995959422 | H92: 0.0001729672405 | I92: 10.46681984 | J92: 0.0005791278195 | M92: 1.79375 | N92: 0.0006547090216 | O92: 3.52689602e-09
A93: 0 | B93: 76 | F93: 3.4 | G93: 0.9997197067 | H93: 0.000123764525 | I93: 10.52803661 | J93: 0.0004746972839 | M93: 1.85 | N93: 0.000685252021 | O93: 3.951959911e-09
A94: 0 | B94: 77 | F94: 3.5 | G94: 0.9998073844 | H94: 8.767770118e-05 | I94: 10.58925337 | J94: 0.0003888414264 | M94: 1.90625 | N94: 0.0007171396682 | O94: 4.431639055e-09
A95: 0 | B95: 78 | F95: 3.6 | G95: 0.9998688798 | H95: 6.149542122e-05 | I95: 10.65047013 | J95: 0.0003183630433 | M95: 1.9625 | N95: 0.0007504244285 | O95: 4.973382885e-09
A96: 0 | B96: 79 | F96: 3.7 | G96: 0.9999115827 | H96: 4.270286922e-05 | I96: 10.7116869 | J96: 0.000260580695 | M96: 2.01875 | N96: 0.0007851602956 | O96: 5.585715333e-09
A97: 0 | B97: 80 | F97: 3.8 | G97: 0.9999409411 | H97: 2.935837278e-05 | I97: 10.77290366 | J97: 0.0002132558424 | M97: 2.075 | N97: 0.0008214027973 | O97: 6.27839815e-09
A98: 0 | B98: 81 | F98: 3.9 | G98: 0.9999609244 | H98: 1.998331582e-05 | I98: 10.83412042 | J98: 0.000174527214 | M98: 2.13125 | N98: 0.0008592089963 | O98: 7.062620283e-09
A99: 0 | B99: 82 | F99: 4 | G99: 0.9999743912 | H99: 1.346678012e-05 | I99: 10.89533718 | J99: 0.0001428526613 | M99: 2.1875 | N99: 0.0008986374878 | O99: 7.951217696e-09
A100: 0 | B100: 83 | F100: 4.1 | G100: 0.9999833762 | H100: 8.985052744e-06 | I100: 10.95655395 | J100: 0.0001169583462 | M100: 2.24375 | N100: 0.0009397483932 | O100: 8.958928729e-09
A101: 0 | B101: 84 | F101: 4.2 | G101: 0.9999893115 | H101: 5.935237955e-06 | I101: 11.01777071 | J101: 9.579483843e-05 | M101: 2.3 | N101: 0.0009826033483 | O101: 1.010269101e-08
A102: 0 | B102: 85 | J102: -0.9995547278 | M102: 2.35625 | N102: 0.001027265487 | O102: 1.140198704e-08
A103: 0 | B103: 86 | M103: 2.4125 | N103: 0.001073799422 | O103: 1.287924671e-08
A104: 0 | B104: 87 | M104: 2.46875 | N104: 0.001122271215 | O104: 1.456031665e-08
A105: 0 | B105: 88 | M105: 2.525 | N105: 0.001172748343 | O105: 1.647500797e-08
A106: 0 | B106: 89 | M106: 2.58125 | N106: 0.001225299666 | O106: 1.865773611e-08
A107: 0 | B107: 90 | M107: 2.6375 | N107: 0.001279995372 | O107: 2.114826891e-08
A108: 0 | B108: 91 | M108: 2.69375 | N108: 0.001336906928 | O108: 2.399260216e-08
A109: 0 | B109: 92 | M109: 2.75 | N109: 0.001396107022 | O109: 2.724398519e-08
A110: 0 | B110: 93 | M110: 2.80625 | N110: 0.001457669488 | O110: 3.096412345e-08
A111: 0 | B111: 94 | M111: 2.8625 | N111: 0.001521669234 | O111: 3.522458995e-08
A112: 0 | B112: 95 | M112: 2.91875 | N112: 0.001588182155 | O112: 4.010848332e-08
A113: 0 | B113: 96 | M113: 2.975 | N113: 0.001657285038 | O113: 4.571237773e-08
A114: 0 | B114: 97 | M114: 3.03125 | N114: 0.001729055456 | O114: 5.214861783e-08
A115: 0 | B115: 98 | M115: 3.0875 | N115: 0.001803571654 | O115: 5.954802284e-08
A116: 0 | B116: 99 | M116: 3.14375 | N116: 0.001880912427 | O116: 6.806307546e-08
A117: 0 | B117: 100 | M117: 3.2 | N117: 0.001961156983 | O117: 7.787168637e-08
M118: 3.25625 | N118: 0.002044384793 | O118: 8.918164245e-08
M119: 3.3125 | N119: 0.002130675439 | O119: 1.022358681e-07
M120: 3.36875 | N120: 0.00222010844 | O120: 1.17318654e-07
M121: 3.425 | N121: 0.002312763073 | O121: 1.347630393e-07
M122: 3.48125 | N122: 0.002408718179 | O122: 1.549595676e-07
M123: 3.5375 | N123: 0.002508051955 | O123: 1.783666843e-07
M124: 3.59375 | N124: 0.002610841738 | O124: 2.055230936e-07
M125: 3.65 | N125: 0.002717163773 | O125: 2.37062459e-07
M126: 3.70625 | N126: 0.002827092969 | O126: 2.737309082e-07
M127: 3.7625 | N127: 0.002940702639 | O127: 3.164078972e-07
M128: 3.81875 | N128: 0.003058064237 | O128: 3.661311015e-07
M129: 3.875 | N129: 0.00317924707 | O129: 4.24126139e-07
M130: 3.93125 | N130: 0.003304318007 | O130: 4.918420943e-07
M131: 3.9875 | N131: 0.003433341169 | O131: 5.70994017e-07
M132: 4.04375 | N132: 0.003566377612 | O132: 6.63613805e-07
M133: 4.1 | N133: 0.003703485 | O133: 7.721111827e-07
M134: 4.15625 | N134: 0.003844717255 | O134: 8.993468376e-07
M135: 4.2125 | N135: 0.003990124217 | O135: 1.048720212e-06
M136: 4.26875 | N136: 0.004139751273 | O136: 1.224274972e-06
M137: 4.325 | N137: 0.00429363899 | O137: 1.43082581e-06
M138: 4.38125 | N138: 0.00445182274 | O138: 1.674111013e-06
M139: 4.4375 | N139: 0.004614332308 | O139: 1.960976161e-06
M140: 4.49375 | N140: 0.004781191508 | O140: 2.299595453e-06
M141: 4.55 | N141: 0.004952417779 | O141: 2.699738553e-06
M142: 4.60625 | N142: 0.005128021792 | O142: 3.173092492e-06
M143: 4.6625 | N143: 0.005308007045 | O143: 3.733650213e-06
M144: 4.71875 | N144: 0.005492369461 | O144: 4.398179774e-06
M145: 4.775 | N145: 0.005681096989 | O145: 5.186791217e-06
M146: =M145+$E$19 -> 4.83125 | N146: 0.005874169201 | O146: 6.123621674e-06
M147: 4.8875 | N147: =_xlfn.T.DIST((M148-D$4)/D$9,D$10-1,1)-_xlfn.T.DIST((M146-D$4)/D$9,D$10-1,1) -> 0.006071556907 | O147: =_xlfn.T.DIST((M148-D$4)/D$6,D$10-1,1)-_xlfn.T.DIST((M146-D$4)/D$6,D$10-1,1) -> 7.23766363e-06
M148: 4.94375 | N148: 0.006273221757 | O148: 8.563766482e-06
M149: 5 | N149: 0.006479115876 | O149: 1.014384783e-05
M150: 5.05625 | N150: 0.006689181485 | O150: 1.202835847e-05
M151: 5.1125 | N151: 0.006903350557 | O151: 1.427805419e-05
M152: 5.16875 | N152: 0.007121544473 | O152: 1.69661382e-05
M153: 5.225 | N153: 0.007343673703 | O153: 2.018085108e-05
M154: 5.28125 | N154: 0.007569637508 | O154: 2.402860027e-05
M155: 5.3375 | N155: 0.007799323658 | O155: 2.863773957e-05
M156: 5.39375 | N156: 0.008032608187 | O156: 3.416313015e-05
M157: 5.45 | N157: 0.008269355162 | O157: 4.079163978e-05
M158: 5.50625 | N158: 0.008509416494 | O158: 4.874876587e-05
M159: 5.5625 | N159: 0.008752631774 | O159: 5.830660146e-05
M160: 5.61875 | N160: 0.008998828148 | O160: 6.979340151e-05
M161: 5.675 | N161: 0.00924782023 | O161: 8.360504964e-05
M162: 5.73125 | N162: 0.009499410053 | O162: 0.0001002187738
M163: 5.7875 | N163: 0.009753387064 | O163: 0.0001202095107
M164: 5.84375 | N164: 0.01000952816 | O164: 0.000144269376
M165: 5.9 | N165: 0.01026759779 | O165: 0.0001732307513
M166: 5.95625 | N166: 0.01052734804 | O166: 0.000208093559
M167: 6.0125 | N167: 0.0107885189 | O167: 0.0002500573429
M168: 6.06875 | N168: 0.01105083842 | O168: 0.000300558815
M169: 6.125 | N169: 0.01131402303 | O169: 0.0003613155464
M170: 6.18125 | N170: 0.0115777779 | O170: 0.000434376472
M171: 6.2375 | N171: 0.01184179729 | O171: 0.0005221798245
M172: 6.29375 | N172: 0.01210576508 | O172: 0.0006276189921
M173: 6.35 | N173: 0.01236935517 | O173: 0.0007541165974
M174: 6.40625 | N174: 0.01263223216 | O174: 0.000905706775
M175: 6.4625 | N175: 0.01289405188 | O175: 0.00108712517
M176: 6.51875 | N176: 0.01315446211 | O176: 0.00130390554
M177: 6.575 | N177: 0.01341310328 | O177: 0.001562480992
M178: 6.63125 | N178: 0.01366960926 | O178: 0.001870286786
M179: 6.6875 | N179: 0.01392360822 | O179: 0.002235860235
M180: 6.74375 | N180: 0.01417472345 | O180: 0.002668931583
M181: 6.8 | N181: 0.01442257432 | O181: 0.003180497724
M182: 6.85625 | N182: 0.01466677724 | O182: 0.003782868434
M183: 6.9125 | N183: 0.01490694666 | O183: 0.004489672367
M184: 6.96875 | N184: 0.0151426961 | O184: 0.005315807647
M185: 7.025 | N185: 0.01537363928 | O185: 0.006277319673
M186: 7.08125 | N186: 0.01559939114 | O186: 0.007391187048
M187: 7.1375 | N187: 0.01581956904 | O187: 0.008674995751
M188: 7.19375 | N188: 0.01603379385 | O188: 0.01014648232
M189: 7.25 | N189: 0.01624169117 | O189: 0.01182292938
M190: 7.30625 | N190: 0.01644289244 | O190: 0.01372040203
M191: 7.3625 | N191: 0.01663703615 | O191: 0.01585282179
M192: 7.41875 | N192: 0.01682376898 | O192: 0.01823088627
M193: 7.475 | N193: 0.01700274703 | O193: 0.02086085808
M194: 7.53125 | N194: 0.01717363688 | O194: 0.02374326414
M195: 7.5875 | N195: 0.0173361168 | O195: 0.02687156731
M196: 7.64375 | N196: 0.01748987781 | O196: 0.03023089257
M197: 7.7 | N197: 0.01763462477 | O197: 0.03379690949
M198: 7.75625 | N198: 0.01777007743 | O198: 0.0375349866
M199: 7.8125 | N199: 0.01789597141 | O199: 0.04139974066
M200: 7.86875 | N200: 0.01801205918 | O200: 0.04533509885
M201: 7.925 | N201: 0.01811811094 | O201: 0.04927497475
M202: 7.98125 | N202: 0.01821391544 | O202: 0.05314462638
... 418 more rows

Sheet Data
A1: Data for the Worksheets
A2: Instructions: This page contains data that is on the designated worksheets so the user can use them to see the original results or reset the worksheets after using them.
A3: Population Mean Worksheet
A4: Sample Value | B4: Survey Results: Case Example (Hours spent per week)
A6: 19.60341451 | B6: 3.2
A7: 14 | B7: 5.8
A8: 29.77796994 | B8: 6.5
A9: 19 | B9: 6.5
A10: 22.47266207 | B10: 7.1
A11: 36 | B11: 7.5
A12: 26.24873078 | B12: 8.4
A13: 32.49631261 | B13: 8.9
A14: 17 | B14: 9
A15: 35 | B15: 9.5
A16: 26.44677252 | B16: 10.1
A17: 39 | B17: 10.2
A18: 41.5 | B18: 10.5
A19: 22.85143994 | B19: 11.3
A20: 30.26941439 | B20: 12.2
A21: 34
A22: 23.50836979
A23: 22.52725565
A24: 21.82083612
A25: 28.548209
